{"text_format":"3","workbook":"xlsx","n_sheets":2,"sheets":["Summary BoQ","BoQ"],"not_rendered":{"defined_names":1},"read":"whole","date_system":"1900"}

{"sheet":"Summary BoQ","index":0,"n_rows":15,"n_cols":2,"rows_kept":15}
["Electrical Consumables"]
[]
[]
["Summary of Bills of Quantities"]
[]
["TOTAL of PRICES (Costs in ZAR)"]
["Bill Description"]
["Electrical Consumables",{"$f":"BoQ!K4","v":0}]
[]
[]
[]
[]
[]
[]
["Totals",{"$f":"SUM(B8:B14)","v":0}]

{"sheet":"BoQ","index":1,"n_rows":460,"n_cols":11,"rows_kept":460}
["CONSTRUCTION SERVICES - ELECTRICAL CONSUMABLES"]
[]
[]
[{"$nulls":9},"Total of Prices:",{"$f":"SUBTOTAL(9,K7:K460)","v":{"v":0,"d":"R 0.00"}}]
["Unique No","Bill Description","Heading 1","Heading 2","Heading 3","Heading 4","Cost allocation ","Unit of measurement","Total Qty","Rate","Total"]
["Bill 1 - ELECRTICAL CONSUMABLES"]
["1.0001","Electrical Consumables","LV","Cable Lugs1.5mm x6mm","Cable Lugs","1.5mm x6mm","Materials","ea",5000,null,{"$f":"I7*J7","v":{"v":0,"d":"R0.00"}}]
["1.0002","Electrical Consumables","LV","Cable Lugs1.5mm x 8mm","Cable Lugs","1.5mm x 8mm","Materials","ea",5000,null,{"v":0,"d":"R0.00"}]
["1.0003","Electrical Consumables","LV","Cable Lugs2.5mmx 6mm","Cable Lugs","2.5mmx 6mm","Materials","ea",5000,null,{"v":0,"d":"R0.00"}]
["1.0004","Electrical Consumables","LV","Cable Lugs2.5mmx 8mm","Cable Lugs","2.5mmx 8mm","Materials","ea",5000,null,{"v":0,"d":"R0.00"}]
["1.0005","Electrical Consumables","LV","Cable Lugs4.0mm x 6mm","Cable Lugs","4.0mm x 6mm","Materials","ea",5000,null,{"v":0,"d":"R0.00"}]
["1.0006","Electrical Consumables","LV","Cable Lugs4.0mm x 8mm","Cable Lugs","4.0mm x 8mm","Materials","ea",5000,null,{"v":0,"d":"R0.00"}]
["1.0007","Electrical Consumables","LV","Cable Lugs4.0mm x 10mm","Cable Lugs","4.0mm x 10mm","Materials","ea",5000,null,{"v":0,"d":"R0.00"}]
["1.0008","Electrical Consumables","LV","Cable Lugs6.0mmx 6mm","Cable Lugs","6.0mmx 6mm","Materials","ea",5000,null,{"v":0,"d":"R0.00"}]
["1.0009","Electrical Consumables","LV","Cable Lugs6.0mmx 8mm","Cable Lugs","6.0mmx 8mm","Materials","ea",5000,null,{"v":0,"d":"R0.00"}]
["1.0010","Electrical Consumables","LV","Cable Lugs6.0mmx 10mm","Cable Lugs","6.0mmx 10mm","Materials","ea",5000,null,{"v":0,"d":"R0.00"}]
["1.0011","Electrical Consumables","LV","Cable Lugs10.0mmx 6mm","Cable Lugs","10.0mmx 6mm","Materials","ea",5000,null,{"v":0,"d":"R0.00"}]
["1.0012","Electrical Consumables","LV","Cable Lugs10.0mmx 8mm","Cable Lugs","10.0mmx 8mm","Materials","ea",5000,null,{"v":0,"d":"R0.00"}]
["1.0013","Electrical Consumables","LV","Cable Lugs10.0mmx 10mm","Cable Lugs","10.0mmx 10mm","Materials","ea",5000,null,{"v":0,"d":"R0.00"}]
["1.0014","Electrical Consumables","LV","Cable Lugs16.0mmx 6mm","Cable Lugs","16.0mmx 6mm","Materials","ea",5000,null,{"v":0,"d":"R0.00"}]
["1.0015","Electrical Consumables","LV","Cable Lugs16.0mmx 8mm","Cable Lugs","16.0mmx 8mm","Materials","ea",5000,null,{"v":0,"d":"R0.00"}]
["1.0016","Electrical Consumables","LV","Cable Lugs16.0mmx 10mm","Cable Lugs","16.0mmx 10mm","Materials","ea",5000,null,{"v":0,"d":"R0.00"}]
["1.0017","Electrical Consumables","LV","Cable Lugs25.0mmx 6mm","Cable Lugs","25.0mmx 6mm","Materials","ea",3000,null,{"v":0,"d":"R0.00"}]
["1.0018","Electrical Consumables","LV","Cable Lugs25.0mmx 8mm","Cable Lugs","25.0mmx 8mm","Materials","ea",3000,null,{"v":0,"d":"R0.00"}]
["1.0019","Electrical Consumables","LV","Cable Lugs25.0mmx 10mm","Cable Lugs","25.0mmx 10mm","Materials","ea",3000,null,{"v":0,"d":"R0.00"}]
["1.0020","Electrical Consumables","LV","Cable Lugs25.0mmx 12mm","Cable Lugs","25.0mmx 12mm","Materials","ea",3000,null,{"v":0,"d":"R0.00"}]
["1.0021","Electrical Consumables","LV","Cable Lugs35.0mmx 6mm","Cable Lugs","35.0mmx 6mm","Materials","ea",3000,null,{"v":0,"d":"R0.00"}]
["1.0022","Electrical Consumables","LV","Cable Lugs35.0mmx 8mm","Cable Lugs","35.0mmx 8mm","Materials","ea",3000,null,{"v":0,"d":"R0.00"}]
["1.0023","Electrical Consumables","LV","Cable Lugs35.0mmx 10mm","Cable Lugs","35.0mmx 10mm","Materials","ea",3000,null,{"v":0,"d":"R0.00"}]
["1.0024","Electrical Consumables","LV","Cable Lugs35.0mmx 12mm","Cable Lugs","35.0mmx 12mm","Materials","ea",3000,null,{"v":0,"d":"R0.00"}]
["1.0025","Electrical Consumables","LV","Cable Lugs50.0mmx 6mm","Cable Lugs","50.0mmx 6mm","Materials","ea",3000,null,{"v":0,"d":"R0.00"}]
["1.0026","Electrical Consumables","LV","Cable Lugs50.0mmx 8mm","Cable Lugs","50.0mmx 8mm","Materials","ea",3000,null,{"v":0,"d":"R0.00"}]
["1.0027","Electrical Consumables","LV","Cable Lugs50.0mmx 10mm","Cable Lugs","50.0mmx 10mm","Materials","ea",3000,null,{"v":0,"d":"R0.00"}]
["1.0028","Electrical Consumables","LV","Cable Lugs50.0mmx 12mm","Cable Lugs","50.0mmx 12mm","Materials","ea",3000,null,{"v":0,"d":"R0.00"}]
["1.0029","Electrical Consumables","LV","Cable Lugs50.0mmx 16mm","Cable Lugs","50.0mmx 16mm","Materials","ea",3000,null,{"v":0,"d":"R0.00"}]
["1.0030","Electrical Consumables","LV","Cable Lugs70.0mmx 6mm","Cable Lugs","70.0mmx 6mm","Materials","ea",2000,null,{"v":0,"d":"R0.00"}]
["1.0031","Electrical Consumables","LV","Cable Lugs70.0mmx 8mm","Cable Lugs","70.0mmx 8mm","Materials","ea",2000,null,{"v":0,"d":"R0.00"}]
["1.0032","Electrical Consumables","LV","Cable Lugs70.0mmx 10mm","Cable Lugs","70.0mmx 10mm","Materials","ea",2000,null,{"v":0,"d":"R0.00"}]
["1.0033","Electrical Consumables","LV","Cable Lugs70.0mmx 12mm","Cable Lugs","70.0mmx 12mm","Materials","ea",2000,null,{"v":0,"d":"R0.00"}]
["1.0034","Electrical Consumables","LV","Cable Lugs70.0mmx 16mm","Cable Lugs","70.0mmx 16mm","Materials","ea",2000,null,{"v":0,"d":"R0.00"}]
["1.0035","Electrical Consumables","LV","Cable Lugs95.0mmx 6mm","Cable Lugs","95.0mmx 6mm","Materials","ea",2000,null,{"v":0,"d":"R0.00"}]
["1.0036","Electrical Consumables","LV","Cable Lugs95.0mmx 8mm","Cable Lugs","95.0mmx 8mm","Materials","ea",2000,null,{"v":0,"d":"R0.00"}]
["1.0037","Electrical Consumables","LV","Cable Lugs95.0mmx 10mm","Cable Lugs","95.0mmx 10mm","Materials","ea",2000,null,{"v":0,"d":"R0.00"}]
["1.0038","Electrical Consumables","LV","Cable Lugs95.0mmx 12mm","Cable Lugs","95.0mmx 12mm","Materials","ea",2000,null,{"v":0,"d":"R0.00"}]
["1.0039","Electrical Consumables","LV","Cable Lugs95.0mmx 16mm","Cable Lugs","95.0mmx 16mm","Materials","ea",2000,null,{"v":0,"d":"R0.00"}]
["1.0040","Electrical Consumables","LV","Cable Lugs120.0mmx 6mm","Cable Lugs","120.0mmx 6mm","Materials","ea",2000,null,{"v":0,"d":"R0.00"}]
["1.0041","Electrical Consumables","LV","Cable Lugs120.0mmx 8mm","Cable Lugs","120.0mmx 8mm","Materials","ea",2000,null,{"v":0,"d":"R0.00"}]
["1.0042","Electrical Consumables","LV","Cable Lugs120.0mmx 10mm","Cable Lugs","120.0mmx 10mm","Materials","ea",2000,null,{"v":0,"d":"R0.00"}]
["1.0043","Electrical Consumables","LV","Cable Lugs120.0mmx 12mm","Cable Lugs","120.0mmx 12mm","Materials","ea",2000,null,{"v":0,"d":"R0.00"}]
["1.0044","Electrical Consumables","LV","Cable Lugs120.0mmx 16mm","Cable Lugs","120.0mmx 16mm","Materials","ea",2000,null,{"v":0,"d":"R0.00"}]
["1.0045","Electrical Consumables","LV","Cable Lugs150.0mmx 8mm","Cable Lugs","150.0mmx 8mm","Materials","ea",2000,null,{"v":0,"d":"R0.00"}]
["1.0046","Electrical Consumables","LV","Cable Lugs150.0mmx 10mm","Cable Lugs","150.0mmx 10mm","Materials","ea",2000,null,{"v":0,"d":"R0.00"}]
["1.0047","Electrical Consumables","LV","Cable Lugs150.0mmx 12mm","Cable Lugs","150.0mmx 12mm","Materials","ea",2000,null,{"v":0,"d":"R0.00"}]
["1.0048","Electrical Consumables","LV","Cable Lugs150.0mmx 16mm","Cable Lugs","150.0mmx 16mm","Materials","ea",2000,null,{"v":0,"d":"R0.00"}]
["1.0049","Electrical Consumables","LV","Cable Lugs185.0mmx 8mm","Cable Lugs","185.0mmx 8mm","Materials","ea",2000,null,{"v":0,"d":"R0.00"}]
["1.0050","Electrical Consumables","LV","Cable Lugs185.0mmx 10mm","Cable Lugs","185.0mmx 10mm","Materials","ea",2000,null,{"v":0,"d":"R0.00"}]
["1.0051","Electrical Consumables","LV","Cable Lugs185.0mmx 12mm","Cable Lugs","185.0mmx 12mm","Materials","ea",2000,null,{"v":0,"d":"R0.00"}]
["1.0052","Electrical Consumables","LV","Cable Lugs185.0mmx 16mm","Cable Lugs","185.0mmx 16mm","Materials","ea",2000,null,{"v":0,"d":"R0.00"}]
["1.0053","Electrical Consumables","LV","Cable Lugs240.0mmx 10mm","Cable Lugs","240.0mmx 10mm","Materials","ea",2000,null,{"v":0,"d":"R0.00"}]
["1.0054","Electrical Consumables","LV","Cable Lugs240.0mmx 12mm","Cable Lugs","240.0mmx 12mm","Materials","ea",2000,null,{"v":0,"d":"R0.00"}]
["1.0055","Electrical Consumables","LV","Cable Lugs240.0mmx 16mm","Cable Lugs","240.0mmx 16mm","Materials","ea",2000,null,{"v":0,"d":"R0.00"}]
["1.0056","Electrical Consumables","LV","Cable Lugs300.0mmx 10mm","Cable Lugs","300.0mmx 10mm","Materials","ea",2000,null,{"v":0,"d":"R0.00"}]
["1.0057","Electrical Consumables","LV","Cable Lugs300.0mmx 12mm","Cable Lugs","300.0mmx 12mm","Materials","ea",2000,null,{"v":0,"d":"R0.00"}]
["1.0058","Electrical Consumables","LV","Cable Lugs300.0mmx 16mm","Cable Lugs","300.0mmx 16mm","Materials","ea",2000,null,{"v":0,"d":"R0.00"}]
["1.0059","Electrical Consumables","LV","Cable Lugs500.0mmx 10mm","Cable Lugs","500.0mmx 10mm","Materials","ea",2000,null,{"v":0,"d":"R0.00"}]
["1.0060","Electrical Consumables","LV","Cable Lugs500.0mmx 12mm","Cable Lugs","500.0mmx 12mm","Materials","ea",2000,null,{"v":0,"d":"R0.00"}]
["1.0061","Electrical Consumables","LV","Cable Lugs500.0mmx 16mm","Cable Lugs","500.0mmx 16mm","Materials","ea",2000,null,{"v":0,"d":"R0.00"}]
["1.0062","Electrical Consumables","LV","Cable Lugs630.0mmx 10mm","Cable Lugs","630.0mmx 10mm","Materials","ea",2000,null,{"v":0,"d":"R0.00"}]
["1.0063","Electrical Consumables","LV","Cable Lugs630.0mmx 12mm","Cable Lugs","630.0mmx 12mm","Materials","ea",2000,null,{"v":0,"d":"R0.00"}]
["1.0064","Electrical Consumables","LV","Cable Lugs630.0mmx 16mm","Cable Lugs","630.0mmx 16mm","Materials","ea",2000,null,{"v":0,"d":"R0.00"}]
["1.0065","Electrical Consumables","MV","Cable Lugs16.0mmx 10mm","Cable Lugs","16.0mmx 10mm","Materials","ea",500,null,{"$f":"I71*J71","v":{"v":0,"d":"R0.00"}}]
["1.0066","Electrical Consumables","MV","Cable Lugs16.0mmx 12mm","Cable Lugs","16.0mmx 12mm","Materials","ea",500,null,{"v":0,"d":"R0.00"}]
["1.0067","Electrical Consumables","MV","Cable Lugs16.0mmx 16mm","Cable Lugs","16.0mmx 16mm","Materials","ea",500,null,{"v":0,"d":"R0.00"}]
["1.0068","Electrical Consumables","MV","Cable Lugs25.0mmx 10mm","Cable Lugs","25.0mmx 10mm","Materials","ea",500,null,{"v":0,"d":"R0.00"}]
["1.0069","Electrical Consumables","MV","Cable Lugs25.0mmx 12mm","Cable Lugs","25.0mmx 12mm","Materials","ea",500,null,{"v":0,"d":"R0.00"}]
["1.0070","Electrical Consumables","MV","Cable Lugs25.0mmx 16mm","Cable Lugs","25.0mmx 16mm","Materials","ea",500,null,{"v":0,"d":"R0.00"}]
["1.0071","Electrical Consumables","MV","Cable Lugs35.0mmx 10mm","Cable Lugs","35.0mmx 10mm","Materials","ea",1000,null,{"v":0,"d":"R0.00"}]
["1.0072","Electrical Consumables","MV","Cable Lugs35.0mmx 12mm","Cable Lugs","35.0mmx 12mm","Materials","ea",1000,null,{"v":0,"d":"R0.00"}]
["1.0073","Electrical Consumables","MV","Cable Lugs35.0mmx 16mm","Cable Lugs","35.0mmx 16mm","Materials","ea",1000,null,{"v":0,"d":"R0.00"}]
["1.0074","Electrical Consumables","MV","Cable Lugs50.0mmx 10mm","Cable Lugs","50.0mmx 10mm","Materials","ea",1000,null,{"v":0,"d":"R0.00"}]
["1.0075","Electrical Consumables","MV","Cable Lugs50.0mmx 12mm","Cable Lugs","50.0mmx 12mm","Materials","ea",1000,null,{"v":0,"d":"R0.00"}]
["1.0076","Electrical Consumables","MV","Cable Lugs50.0mmx 16mm","Cable Lugs","50.0mmx 16mm","Materials","ea",1000,null,{"v":0,"d":"R0.00"}]
["1.0077","Electrical Consumables","MV","Cable Lugs70.0mmx 10mm","Cable Lugs","70.0mmx 10mm","Materials","ea",1000,null,{"v":0,"d":"R0.00"}]
["1.0078","Electrical Consumables","MV","Cable Lugs70.0mmx 12mm","Cable Lugs","70.0mmx 12mm","Materials","ea",1000,null,{"v":0,"d":"R0.00"}]
["1.0079","Electrical Consumables","MV","Cable Lugs70.0mmx 16mm","Cable Lugs","70.0mmx 16mm","Materials","ea",1000,null,{"v":0,"d":"R0.00"}]
["1.0080","Electrical Consumables","MV","Cable Lugs95.0mmx 10mm","Cable Lugs","95.0mmx 10mm","Materials","ea",1000,null,{"v":0,"d":"R0.00"}]
["1.0081","Electrical Consumables","MV","Cable Lugs95.0mmx 12mm","Cable Lugs","95.0mmx 12mm","Materials","ea",1000,null,{"v":0,"d":"R0.00"}]
["1.0082","Electrical Consumables","MV","Cable Lugs95.0mmx 16mm","Cable Lugs","95.0mmx 16mm","Materials","ea",1000,null,{"v":0,"d":"R0.00"}]
["1.0083","Electrical Consumables","MV","Cable Lugs120.0mmx 10mm","Cable Lugs","120.0mmx 10mm","Materials","ea",1000,null,{"v":0,"d":"R0.00"}]
["1.0084","Electrical Consumables","MV","Cable Lugs120.0mmx 12mm","Cable Lugs","120.0mmx 12mm","Materials","ea",1000,null,{"v":0,"d":"R0.00"}]
["1.0085","Electrical Consumables","MV","Cable Lugs120.0mmx 16mm","Cable Lugs","120.0mmx 16mm","Materials","ea",1000,null,{"v":0,"d":"R0.00"}]
["1.0086","Electrical Consumables","MV","Cable Lugs150.0mmx 10mm","Cable Lugs","150.0mmx 10mm","Materials","ea",1000,null,{"v":0,"d":"R0.00"}]
["1.0087","Electrical Consumables","MV","Cable Lugs150.0mmx 12mm","Cable Lugs","150.0mmx 12mm","Materials","ea",1000,null,{"v":0,"d":"R0.00"}]
["1.0088","Electrical Consumables","MV","Cable Lugs150.0mmx 16mm","Cable Lugs","150.0mmx 16mm","Materials","ea",1000,null,{"v":0,"d":"R0.00"}]
["1.0089","Electrical Consumables","MV","Cable Lugs185.0mmx 10mm","Cable Lugs","185.0mmx 10mm","Materials","ea",1000,null,{"v":0,"d":"R0.00"}]
["1.0090","Electrical Consumables","MV","Cable Lugs185.0mmx 12mm","Cable Lugs","185.0mmx 12mm","Materials","ea",1000,null,{"v":0,"d":"R0.00"}]
["1.0091","Electrical Consumables","MV","Cable Lugs185.0mmx 16mm","Cable Lugs","185.0mmx 16mm","Materials","ea",1000,null,{"v":0,"d":"R0.00"}]
["1.0092","Electrical Consumables","MV","Cable Lugs240.0mmx 10mm","Cable Lugs","240.0mmx 10mm","Materials","ea",1000,null,{"v":0,"d":"R0.00"}]
["1.0093","Electrical Consumables","MV","Cable Lugs240.0mmx 12mm","Cable Lugs","240.0mmx 12mm","Materials","ea",1000,null,{"v":0,"d":"R0.00"}]
["1.0094","Electrical Consumables","MV","Cable Lugs240.0mmx 16mm","Cable Lugs","240.0mmx 16mm","Materials","ea",1000,null,{"v":0,"d":"R0.00"}]
["1.0095","Electrical Consumables","MV","Cable Lugs300.0mmx 10mm","Cable Lugs","300.0mmx 10mm","Materials","ea",1000,null,{"v":0,"d":"R0.00"}]
["1.0096","Electrical Consumables","MV","Cable Lugs300.0mmx 12mm","Cable Lugs","300.0mmx 12mm","Materials","ea",1000,null,{"v":0,"d":"R0.00"}]
["1.0097","Electrical Consumables","MV","Cable Lugs300.0mmx 16mm","Cable Lugs","300.0mmx 16mm","Materials","ea",1000,null,{"v":0,"d":"R0.00"}]
["1.0098","Electrical Consumables","MV","Cable Lugs500.0mmx 10mm","Cable Lugs","500.0mmx 10mm","Materials","ea",1000,null,{"v":0,"d":"R0.00"}]
["1.0099","Electrical Consumables","MV","Cable Lugs500.0mmx 12mm","Cable Lugs","500.0mmx 12mm","Materials","ea",1000,null,{"v":0,"d":"R0.00"}]
["1.0100","Electrical Consumables","MV","Cable Lugs500.0mmx 16mm","Cable Lugs","500.0mmx 16mm","Materials","ea",1000,null,{"v":0,"d":"R0.00"}]
["1.0101","Electrical Consumables","MV","Cable Lugs630.0mmx 10mm","Cable Lugs","630.0mmx 10mm","Materials","ea",1000,null,{"v":0,"d":"R0.00"}]
["1.0102","Electrical Consumables","MV","Cable Lugs630.0mmx 12mm","Cable Lugs","630.0mmx 12mm","Materials","ea",1000,null,{"v":0,"d":"R0.00"}]
["1.0103","Electrical Consumables","MV","Cable Lugs630.0mmx 16mm","Cable Lugs","630.0mmx 16mm","Materials","ea",1000,null,{"v":0,"d":"R0.00"}]
["1.0104","Electrical Consumables","MV","Mechanical (Torque Shear) Lug25/95x 16mm","Mechanical (Torque Shear) Lug","25/95x 16mm","Materials","ea",2000,null,{"v":0,"d":"R0.00"}]
["1.0105","Electrical Consumables","MV","Mechanical (Torque Shear) Lug120/300x 16mm","Mechanical (Torque Shear) Lug","120/300x 16mm","Materials","ea",2000,null,{"v":0,"d":"R0.00"}]
["1.0106","Electrical Consumables","MV","Mechanical (Torque Shear) Lug185/400x 16mm","Mechanical (Torque Shear) Lug","185/400x 16mm","Materials","ea",2000,null,{"v":0,"d":"R0.00"}]
["1.0107","Electrical Consumables","MV","Mechanical (Torque Shear) Lug500/630 x 16mm","Mechanical (Torque Shear) Lug","500/630 x 16mm","Materials","ea",2000,null,{"v":0,"d":"R0.00"}]
["1.0108","Electrical Consumables","MV","Mechanical (Torque Shear) Ferrules10/35","Mechanical (Torque Shear) Ferrules","10/35","Materials","ea",2000,null,{"v":0,"d":"R0.00"}]
["1.0109","Electrical Consumables","MV","Mechanical (Torque Shear) Ferrules35/150","Mechanical (Torque Shear) Ferrules","35/150","Materials","ea",2000,null,{"v":0,"d":"R0.00"}]
["1.0110","Electrical Consumables","MV","Mechanical (Torque Shear) Ferrules95/240","Mechanical (Torque Shear) Ferrules","95/240","Materials","ea",2000,null,{"v":0,"d":"R0.00"}]
["1.0111","Electrical Consumables","MV","Mechanical (Torque Shear) Ferrules120/300","Mechanical (Torque Shear) Ferrules","120/300","Materials","ea",2000,null,{"v":0,"d":"R0.00"}]
["1.0112","Electrical Consumables","MV","Mechanical (Torque Shear) Ferrules400 - 500 ","Mechanical (Torque Shear) Ferrules","400 - 500 ","Materials","ea",2000,null,{"v":0,"d":"R0.00"}]
["1.0113","Electrical Consumables","MV","Mechanical (Torque Shear) Ferrules500/630","Mechanical (Torque Shear) Ferrules","500/630","Materials","ea",2000,null,{"v":0,"d":"R0.00"}]
["1.0114","Electrical Consumables","LV","Cable Ferrules1.5mm","Cable Ferrules","1.5mm","Materials","ea",5000,null,{"v":0,"d":"R0.00"}]
["1.0115","Electrical Consumables","LV","Cable Ferrules2.5mm","Cable Ferrules","2.5mm","Materials","ea",5000,null,{"v":0,"d":"R0.00"}]
["1.0116","Electrical Consumables","LV","Cable Ferrules4.0mm","Cable Ferrules","4.0mm","Materials","ea",5000,null,{"v":0,"d":"R0.00"}]
["1.0117","Electrical Consumables","LV","Cable Ferrules6.0mm","Cable Ferrules","6.0mm","Materials","ea",5000,null,{"v":0,"d":"R0.00"}]
["1.0118","Electrical Consumables","LV","Cable Ferrules10.0mm","Cable Ferrules","10.0mm","Materials","ea",5000,null,{"v":0,"d":"R0.00"}]
["1.0119","Electrical Consumables","LV","Cable Ferrules16.0mm","Cable Ferrules","16.0mm","Materials","ea",5000,null,{"v":0,"d":"R0.00"}]
["1.0120","Electrical Consumables","LV","Cable Ferrules25.0mm","Cable Ferrules","25.0mm","Materials","ea",5000,null,{"v":0,"d":"R0.00"}]
["1.0121","Electrical Consumables","LV","Cable Ferrules35.0mm","Cable Ferrules","35.0mm","Materials","ea",5000,null,{"v":0,"d":"R0.00"}]
["1.0122","Electrical Consumables","LV","Cable Ferrules50.0mm","Cable Ferrules","50.0mm","Materials","ea",5000,null,{"v":0,"d":"R0.00"}]
["1.0123","Electrical Consumables","LV","Cable Ferrules70.0mm","Cable Ferrules","70.0mm","Materials","ea",5000,null,{"v":0,"d":"R0.00"}]
["1.0124","Electrical Consumables","LV","Cable Ferrules95.0mm","Cable Ferrules","95.0mm","Materials","ea",2000,null,{"v":0,"d":"R0.00"}]
["1.0125","Electrical Consumables","LV","Cable Ferrules120.0mm","Cable Ferrules","120.0mm","Materials","ea",2000,null,{"v":0,"d":"R0.00"}]
["1.0126","Electrical Consumables","LV","Cable Ferrules150.0mm","Cable Ferrules","150.0mm","Materials","ea",2000,null,{"v":0,"d":"R0.00"}]
["1.0127","Electrical Consumables","LV","Cable Ferrules185.0mm","Cable Ferrules","185.0mm","Materials","ea",2000,null,{"v":0,"d":"R0.00"}]
["1.0128","Electrical Consumables","LV","Cable Ferrules240.0mm","Cable Ferrules","240.0mm","Materials","ea",2000,null,{"v":0,"d":"R0.00"}]
["1.0129","Electrical Consumables","LV","Cable Ferrules300.0mm","Cable Ferrules","300.0mm","Materials","ea",2000,null,{"$f":"I135*J135","v":{"v":0,"d":"R0.00"}}]
["1.0130","Electrical Consumables","LV","Cable Ferrules500.0mm","Cable Ferrules","500.0mm","Materials","ea",2000,null,{"v":0,"d":"R0.00"}]
["1.0131","Electrical Consumables","LV","Cable Ferrules630.0mm","Cable Ferrules","630.0mm","Materials","ea",2000,null,{"v":0,"d":"R0.00"}]
["1.0132","Electrical Consumables","MV","Cable Ferrules16.0mm","Cable Ferrules","16.0mm","Materials","ea",1000,null,{"v":0,"d":"R0.00"}]
["1.0133","Electrical Consumables","MV","Cable Ferrules25.0mm","Cable Ferrules","25.0mm","Materials","ea",1000,null,{"v":0,"d":"R0.00"}]
["1.0134","Electrical Consumables","MV","Cable Ferrules35.0mm","Cable Ferrules","35.0mm","Materials","ea",1000,null,{"v":0,"d":"R0.00"}]
["1.0135","Electrical Consumables","MV","Cable Ferrules50.0mm","Cable Ferrules","50.0mm","Materials","ea",1000,null,{"v":0,"d":"R0.00"}]
["1.0136","Electrical Consumables","MV","Cable Ferrules70.0mm","Cable Ferrules","70.0mm","Materials","ea",1000,null,{"v":0,"d":"R0.00"}]
["1.0137","Electrical Consumables","MV","Cable Ferrules95.0mm","Cable Ferrules","95.0mm","Materials","ea",1000,null,{"v":0,"d":"R0.00"}]
["1.0138","Electrical Consumables","MV","Cable Ferrules120.0mm","Cable Ferrules","120.0mm","Materials","ea",1000,null,{"v":0,"d":"R0.00"}]
["1.0139","Electrical Consumables","MV","Cable Ferrules150.0mm","Cable Ferrules","150.0mm","Materials","ea",1000,null,{"v":0,"d":"R0.00"}]
["1.0140","Electrical Consumables","MV","Cable Ferrules185.0mm","Cable Ferrules","185.0mm","Materials","ea",1000,null,{"v":0,"d":"R0.00"}]
["1.0141","Electrical Consumables","MV","Cable Ferrules240.0mm","Cable Ferrules","240.0mm","Materials","ea",1000,null,{"v":0,"d":"R0.00"}]
["1.0142","Electrical Consumables","MV","Cable Ferrules300.0mm","Cable Ferrules","300.0mm","Materials","ea",1000,null,{"v":0,"d":"R0.00"}]
["1.0143","Electrical Consumables","MV","Cable Ferrules500.0mm","Cable Ferrules","500.0mm","Materials","ea",1000,null,{"v":0,"d":"R0.00"}]
["1.0144","Electrical Consumables","MV","Cable Ferrules630.0mm","Cable Ferrules","630.0mm","Materials","ea",1000,null,{"v":0,"d":"R0.00"}]
["1.0145","Electrical Consumables","Electrical Connection Box","PRATLEY / CCG BOX INCL TERMINALS with 2.5 mm to 6 mm terminals 2+ L; 2 + N; 2 + E; complete with Bridge piece, barrier plates and end stopsNo 1","PRATLEY / CCG BOX INCL TERMINALS with 2.5 mm to 6 mm terminals 2+ L; 2 + N; 2 + E; complete with Bridge piece, barrier plates and end stops","No 1","Materials","ea",8000,null,{"v":0,"d":"R0.00"}]
["1.0146","Electrical Consumables","Electrical Connection Box","PRATLEY / CCG BOX INCL TERMINALS with 2.5 mm to 6 mm terminals 2+ L; 2 + N; 2 + E; complete with Bridge piece, barrier plates and end stopsNo 2","PRATLEY / CCG BOX INCL TERMINALS with 2.5 mm to 6 mm terminals 2+ L; 2 + N; 2 + E; complete with Bridge piece, barrier plates and end stops","No 2","Materials","ea",4000,null,{"v":0,"d":"R0.00"}]
["1.0147","Electrical Consumables","Electrical Connection Box","PRATLEY / CCG BOX INCL TERMINALS with 2.5 mm to 6 mm terminals 2+ L; 2 + N; 2 + E; complete with Bridge piece, barrier plates and end stopsNo 3","PRATLEY / CCG BOX INCL TERMINALS with 2.5 mm to 6 mm terminals 2+ L; 2 + N; 2 + E; complete with Bridge piece, barrier plates and end stops","No 3","Materials","ea",4000,null,{"v":0,"d":"R0.00"}]
["1.0148","Electrical Consumables","Electrical Connection Box","PRATLEY / CCG BOX INCL TERMINALS with 2.5 mm to 6 mm terminals 2+ L; 2 + N; 2 + E; complete with Bridge piece, barrier plates and end stopsNo 4","PRATLEY / CCG BOX INCL TERMINALS with 2.5 mm to 6 mm terminals 2+ L; 2 + N; 2 + E; complete with Bridge piece, barrier plates and end stops","No 4","Materials","ea",4000,null,{"v":0,"d":"R0.00"}]
["1.0149","Electrical Consumables","Electrical Connection Box","Pratley / CCG BOX EXE INCL TERMINALS with 2.5 mm to 6 mm terminals 2+ L; 2 + N; 2 + E; complete with Bridge piece, barrier plates and end stopsNo 1","Pratley / CCG BOX EXE INCL TERMINALS with 2.5 mm to 6 mm terminals 2+ L; 2 + N; 2 + E; complete with Bridge piece, barrier plates and end stops","No 1","Materials","ea",4000,null,{"v":0,"d":"R0.00"}]
["1.0150","Electrical Consumables","Electrical Connection Box","Pratley / CCG BOX EXE INCL TERMINALS with 2.5 mm to 6 mm terminals 2+ L; 2 + N; 2 + E; complete with Bridge piece, barrier plates and end stopsNo 2","Pratley / CCG BOX EXE INCL TERMINALS with 2.5 mm to 6 mm terminals 2+ L; 2 + N; 2 + E; complete with Bridge piece, barrier plates and end stops","No 2","Materials","ea",4000,null,{"v":0,"d":"R0.00"}]
["1.0151","Electrical Consumables","Electrical Connection Box","Pratley / CCG BOX EXE INCL TERMINALS with 2.5 mm to 6 mm terminals 2+ L; 2 + N; 2 + E; complete with Bridge piece, barrier plates and end stopsNo 3","Pratley / CCG BOX EXE INCL TERMINALS with 2.5 mm to 6 mm terminals 2+ L; 2 + N; 2 + E; complete with Bridge piece, barrier plates and end stops","No 3","Materials","ea",2000,null,{"v":0,"d":"R0.00"}]
["1.0152","Electrical Consumables","Electrical Connection Box","Pratley / CCG BOX EXE INCL TERMINALS with 2.5 mm to 6 mm terminals 2+ L; 2 + N; 2 + E; complete with Bridge piece, barrier plates and end stopsNo 4","Pratley / CCG BOX EXE INCL TERMINALS with 2.5 mm to 6 mm terminals 2+ L; 2 + N; 2 + E; complete with Bridge piece, barrier plates and end stops","No 4","Materials","ea",2000,null,{"v":0,"d":"R0.00"}]
["1.0153","Electrical Consumables","Glands","CompressionNo 1","Compression","No 1","Materials","ea",5000,null,{"v":0,"d":"R0.00"}]
["1.0154","Electrical Consumables","Glands","CompressionNo 2","Compression","No 2","Materials","ea",5000,null,{"v":0,"d":"R0.00"}]
["1.0155","Electrical Consumables","Glands","CompressionNo 3","Compression","No 3","Materials","ea",1000,null,{"v":0,"d":"R0.00"}]
["1.0156","Electrical Consumables","Glands","CompressionNo 4","Compression","No 4","Materials","ea",750,null,{"v":0,"d":"R0.00"}]
["1.0157","Electrical Consumables","Glands","CompressionNo 5","Compression","No 5","Materials","ea",500,null,{"v":0,"d":"R0.00"}]
["1.0158","Electrical Consumables","Glands","CompressionNo 6","Compression","No 6","Materials","ea",500,null,{"v":0,"d":"R0.00"}]
["1.0159","Electrical Consumables","Glands","Compression EXENo 1","Compression EXE","No 1","Materials","ea",3000,null,{"v":0,"d":"R0.00"}]
["1.0160","Electrical Consumables","Glands","Compression EXENo 2","Compression EXE","No 2","Materials","ea",1000,null,{"v":0,"d":"R0.00"}]
["1.0161","Electrical Consumables","Glands","Compression EXENo 3","Compression EXE","No 3","Materials","ea",750,null,{"v":0,"d":"R0.00"}]
["1.0162","Electrical Consumables","Glands","Compression EXENo 4","Compression EXE","No 4","Materials","ea",500,null,{"v":0,"d":"R0.00"}]
["1.0163","Electrical Consumables","Glands","Compression EXENo 5","Compression EXE","No 5","Materials","ea",500,null,{"v":0,"d":"R0.00"}]
["1.0164","Electrical Consumables","Glands","Compression EXENo 6","Compression EXE","No 6","Materials","ea",500,null,{"v":0,"d":"R0.00"}]
["1.0165","Electrical Consumables","Glands","Shrouds no. 0","Shrouds ","no. 0","Materials","ea",10000,null,{"v":0,"d":"R0.00"}]
["1.0166","Electrical Consumables","Glands","Shrouds no. 1","Shrouds ","no. 1","Materials","ea",13000,null,{"v":0,"d":"R0.00"}]
["1.0167","Electrical Consumables","Glands","Shrouds no. 2","Shrouds ","no. 2","Materials","ea",11000,null,{"v":0,"d":"R0.00"}]
["1.0168","Electrical Consumables","Glands","Shrouds no. 3","Shrouds ","no. 3","Materials","ea",6750,null,{"v":0,"d":"R0.00"}]
["1.0169","Electrical Consumables","Glands","Shrouds no. 4","Shrouds ","no. 4","Materials","ea",6250,null,{"v":0,"d":"R0.00"}]
["1.0170","Electrical Consumables","Glands","Shrouds no. 5","Shrouds ","no. 5","Materials","ea",6000,null,{"v":0,"d":"R0.00"}]
["1.0171","Electrical Consumables","Glands","Shrouds no. 6","Shrouds ","no. 6","Materials","ea",6000,null,{"v":0,"d":"R0.00"}]
["1.0172","Electrical Consumables","LV","CABLE JOINT KITS RESINMX1","CABLE JOINT KITS RESIN","MX1","Materials","ea",500,null,{"v":0,"d":"R0.00"}]
["1.0173","Electrical Consumables","LV","CABLE JOINT KITS RESINMX2","CABLE JOINT KITS RESIN","MX2","Materials","ea",500,null,{"v":0,"d":"R0.00"}]
["1.0174","Electrical Consumables","LV","CABLE JOINT KITS RESINMX3","CABLE JOINT KITS RESIN","MX3","Materials","ea",500,null,{"v":0,"d":"R0.00"}]
["1.0175","Electrical Consumables","LV","CABLE JOINT KITS RESINMX4","CABLE JOINT KITS RESIN","MX4","Materials","ea",500,null,{"v":0,"d":"R0.00"}]
["1.0176","Electrical Consumables","LV","CABLE JOINT KITS RESINMX5","CABLE JOINT KITS RESIN","MX5","Materials","ea",500,null,{"v":0,"d":"R0.00"}]
["1.0177","Electrical Consumables","LV","CABLE JOINT KITS RESINMX6","CABLE JOINT KITS RESIN","MX6","Materials","ea",500,null,{"v":0,"d":"R0.00"}]
["1.0178","Electrical Consumables","MV","KIT,TERM:3C ;XLPE ;11KV :ID; 25-70 MM2","KIT,TERM:3C ;XLPE ;11KV :ID; 25-70 MM2",null,"Materials","ea",500,null,{"v":0,"d":"R0.00"}]
["1.0179","Electrical Consumables","MV","KIT,TERM:3C ;XLPE ;11KV; OD ;25-70 MM2","KIT,TERM:3C ;XLPE ;11KV; OD ;25-70 MM2",null,"Materials","ea",500,null,{"v":0,"d":"R0.00"}]
["1.0180","Electrical Consumables","MV","KIT,TERM:3C ;XLPE ;11KV; ID 50 -120MM2","KIT,TERM:3C ;XLPE ;11KV; ID 50 -120MM2",null,"Materials","ea",500,null,{"v":0,"d":"R0.00"}]
["1.0181","Electrical Consumables","MV","KIT,TERM:3C ;XLPE ;11KV; OD ;50-120 MM2","KIT,TERM:3C ;XLPE ;11KV; OD ;50-120 MM2",null,"Materials","ea",500,null,{"v":0,"d":"R0.00"}]
["1.0182","Electrical Consumables","MV","KIT,TERM:3C ;XLPE ;11KV; ID ;95-185 MM2","KIT,TERM:3C ;XLPE ;11KV; ID ;95-185 MM2",null,"Materials","ea",500,null,{"v":0,"d":"R0.00"}]
["1.0183","Electrical Consumables","MV","KIT,TERM:3C ;XLPE ;11KV; OD ;95-185 MM2","KIT,TERM:3C ;XLPE ;11KV; OD ;95-185 MM2",null,"Materials","ea",500,null,{"v":0,"d":"R0.00"}]
["1.0184","Electrical Consumables","MV","KIT,TERM:3C ;XLPE ;11KV; ID ;185-300 MM2","KIT,TERM:3C ;XLPE ;11KV; ID ;185-300 MM2",null,"Materials","ea",500,null,{"v":0,"d":"R0.00"}]
["1.0185","Electrical Consumables","MV","KIT,TERM:3C ;XLPE ;11KV; OD ;185-300 MM2","KIT,TERM:3C ;XLPE ;11KV; OD ;185-300 MM2",null,"Materials","ea",500,null,{"v":0,"d":"R0.00"}]
["1.0186","Electrical Consumables","MV","KIT,TERM:3C ;XLPE ;11KV ;ID ;400 MM2","KIT,TERM:3C ;XLPE ;11KV ;ID ;400 MM2",null,"Materials","ea",200,null,{"v":0,"d":"R0.00"}]
["1.0187","Electrical Consumables","MV","KIT,TERM:3C ;XLPE ;11KV ;OD ;400 MM2","KIT,TERM:3C ;XLPE ;11KV ;OD ;400 MM2",null,"Materials","ea",200,null,{"v":0,"d":"R0.00"}]
["1.0188","Electrical Consumables","MV","KIT,TERM:3C ;XLPE ;11KV ;ID ;500 MM2","KIT,TERM:3C ;XLPE ;11KV ;ID ;500 MM2",null,"Materials","ea",500,null,{"v":0,"d":"R0.00"}]
["1.0189","Electrical Consumables","MV","KIT,TERM:3C ;XLPE ;11KV ;OD ;500 MM2","KIT,TERM:3C ;XLPE ;11KV ;OD ;500 MM2",null,"Materials","ea",500,null,{"v":0,"d":"R0.00"}]
["1.0190","Electrical Consumables","MV","KIT,JOINT:3C ;XLPE ;11KV;25-70 MM2","KIT,JOINT:3C ;XLPE ;11KV;25-70 MM2",null,"Materials","ea",250,null,{"v":0,"d":"R0.00"}]
["1.0191","Electrical Consumables","MV","KIT,JOINT:3C ;XLPE ;11KV; 50 -120MM2","KIT,JOINT:3C ;XLPE ;11KV; 50 -120MM2",null,"Materials","ea",250,null,{"v":0,"d":"R0.00"}]
["1.0192","Electrical Consumables","MV","KIT,JOINT:3C ;XLPE ;11KV;95-185 MM2","KIT,JOINT:3C ;XLPE ;11KV;95-185 MM2",null,"Materials","ea",500,null,{"v":0,"d":"R0.00"}]
["1.0193","Electrical Consumables","MV","KIT,JOINT:3C ;XLPE ;11KV; 185-300 MM2","KIT,JOINT:3C ;XLPE ;11KV; 185-300 MM2",null,"Materials","ea",500,null,{"$f":"I199*J199","v":{"v":0,"d":"R0.00"}}]
["1.0194","Electrical Consumables","MV","KIT,JOINT:3C ;XLPE ;11KV ;400 MM2","KIT,JOINT:3C ;XLPE ;11KV ;400 MM2",null,"Materials","ea",200,null,{"v":0,"d":"R0.00"}]
["1.0195","Electrical Consumables","MV","KIT,JOINT:3C ;XLPE ;11KV;500 MM2","KIT,JOINT:3C ;XLPE ;11KV;500 MM2",null,"Materials","ea",500,null,{"v":0,"d":"R0.00"}]
["1.0196","Electrical Consumables","MV","KIT,JOINT:3C ;XLPE ;11KV;630 MM2","KIT,JOINT:3C ;XLPE ;11KV;630 MM2",null,"Materials","ea",200,null,{"v":0,"d":"R0.00"}]
["1.0197","Electrical Consumables","MV","KIT,JOINT:3C ;Transition  ;11KV;25-70 MM2","KIT,JOINT:3C ;Transition  ;11KV;25-70 MM2",null,"Materials","ea",250,null,{"v":0,"d":"R0.00"}]
["1.0198","Electrical Consumables","MV","KIT,JOINT:3C ;Transition ;11KV;  50 -120MM2","KIT,JOINT:3C ;Transition ;11KV;  50 -120MM2",null,"Materials","ea",250,null,{"v":0,"d":"R0.00"}]
["1.0199","Electrical Consumables","MV","KIT,JOINT:3C ;Transition ;11KV;95-185 MM2","KIT,JOINT:3C ;Transition ;11KV;95-185 MM2",null,"Materials","ea",500,null,{"v":0,"d":"R0.00"}]
["1.0200","Electrical Consumables","MV","KIT,JOINT:3C ;Transition ;11KV;185-300 MM2","KIT,JOINT:3C ;Transition ;11KV;185-300 MM2",null,"Materials","ea",500,null,{"v":0,"d":"R0.00"}]
["1.0201","Electrical Consumables","MV","KIT,JOINT:3C ;Transition ;11KV ;500 MM2","KIT,JOINT:3C ;Transition ;11KV ;500 MM2",null,"Materials","ea",500,null,{"v":0,"d":"R0.00"}]
["1.0202","Electrical Consumables","MV","KIT,JOINT:3C ;Transition ;11KV; ;630 MM2","KIT,JOINT:3C ;Transition ;11KV; ;630 MM2",null,"Materials","ea",250,null,{"v":0,"d":"R0.00"}]
["1.0203","Electrical Consumables","MV","KIT,TERM:3C ;XLPE ;22KV; ID ;25-70 MM2","KIT,TERM:3C ;XLPE ;22KV; ID ;25-70 MM2",null,"Materials","ea",250,null,{"v":0,"d":"R0.00"}]
["1.0204","Electrical Consumables","MV","KIT,TERM:3C ;XLPE ;22KV; OD ;25-70 MM2","KIT,TERM:3C ;XLPE ;22KV; OD ;25-70 MM2",null,"Materials","ea",250,null,{"v":0,"d":"R0.00"}]
["1.0205","Electrical Consumables","MV","KIT,TERM:3C ;XLPE ;22KV; ID 50 -120MM2","KIT,TERM:3C ;XLPE ;22KV; ID 50 -120MM2",null,"Materials","ea",250,null,{"v":0,"d":"R0.00"}]
["1.0206","Electrical Consumables","MV","KIT,TERM:3C ;XLPE ;22KV; OD ;50-120 MM2","KIT,TERM:3C ;XLPE ;22KV; OD ;50-120 MM2",null,"Materials","ea",250,null,{"v":0,"d":"R0.00"}]
["1.0207","Electrical Consumables","MV","KIT,TERM:3C ;XLPE ;22KV; ID ;95-185 MM2","KIT,TERM:3C ;XLPE ;22KV; ID ;95-185 MM2",null,"Materials","ea",500,null,{"v":0,"d":"R0.00"}]
["1.0208","Electrical Consumables","MV","KIT,TERM:3C ;XLPE ;22KV; OD ;95-185 MM2","KIT,TERM:3C ;XLPE ;22KV; OD ;95-185 MM2",null,"Materials","ea",200,null,{"v":0,"d":"R0.00"}]
["1.0209","Electrical Consumables","MV","KIT,TERM:3C ;XLPE ;22KV; ID ;185-300 MM2","KIT,TERM:3C ;XLPE ;22KV; ID ;185-300 MM2",null,"Materials","ea",500,null,{"v":0,"d":"R0.00"}]
["1.0210","Electrical Consumables","MV","KIT,TERM:3C ;XLPE ;22KV; OD ;185-300 MM2","KIT,TERM:3C ;XLPE ;22KV; OD ;185-300 MM2",null,"Materials","ea",500,null,{"v":0,"d":"R0.00"}]
["1.0211","Electrical Consumables","MV","KIT,JOINT:3C ;XLPE ;22KV; 25-70 MM2","KIT,JOINT:3C ;XLPE ;22KV; 25-70 MM2",null,"Materials","ea",200,null,{"v":0,"d":"R0.00"}]
["1.0212","Electrical Consumables","MV","KIT,JOINT:3C ;XLPE ;22KV; 50 -120MM2","KIT,JOINT:3C ;XLPE ;22KV; 50 -120MM2",null,"Materials","ea",200,null,{"v":0,"d":"R0.00"}]
["1.0213","Electrical Consumables","MV","KIT,JOINT:3C ;XLPE ;22KV; 95-185 MM2","KIT,JOINT:3C ;XLPE ;22KV; 95-185 MM2",null,"Materials","ea",500,null,{"v":0,"d":"R0.00"}]
["1.0214","Electrical Consumables","MV","KIT,JOINT:3C ;XLPE ;22KV; 185-300 MM2","KIT,JOINT:3C ;XLPE ;22KV; 185-300 MM2",null,"Materials","ea",500,null,{"v":0,"d":"R0.00"}]
["1.0215","Electrical Consumables","MV","KIT,JOINT:3C ;XLPE ;22KV ;400 MM2","KIT,JOINT:3C ;XLPE ;22KV ;400 MM2",null,"Materials","ea",200,null,{"v":0,"d":"R0.00"}]
["1.0216","Electrical Consumables","MV","KIT,JOINT:3C ;XLPE ;22KV ;500 MM2","KIT,JOINT:3C ;XLPE ;22KV ;500 MM2",null,"Materials","ea",500,null,{"v":0,"d":"R0.00"}]
["1.0217","Electrical Consumables","MV","KIT,JOINT:3C ;XLPE ;22KV; 630 MM2","KIT,JOINT:3C ;XLPE ;22KV; 630 MM2",null,"Materials","ea",500,null,{"v":0,"d":"R0.00"}]
["1.0218","Electrical Consumables","MV","KIT,TERM:1C ;XLPE ;11KV; ID ;25-70 MM2","KIT,TERM:1C ;XLPE ;11KV; ID ;25-70 MM2",null,"Materials","ea",200,null,{"v":0,"d":"R0.00"}]
["1.0219","Electrical Consumables","MV","KIT,TERM:1C ;XLPE ;11KV; OD ;25-70 MM2","KIT,TERM:1C ;XLPE ;11KV; OD ;25-70 MM2",null,"Materials","ea",200,null,{"v":0,"d":"R0.00"}]
["1.0220","Electrical Consumables","MV","KIT,TERM:1C ;XLPE ;11KV; ID 50 -120MM2","KIT,TERM:1C ;XLPE ;11KV; ID 50 -120MM2",null,"Materials","ea",200,null,{"v":0,"d":"R0.00"}]
["1.0221","Electrical Consumables","MV","KIT,TERM:1C ;XLPE ;11KV; OD ;50-120 MM2","KIT,TERM:1C ;XLPE ;11KV; OD ;50-120 MM2",null,"Materials","ea",200,null,{"v":0,"d":"R0.00"}]
["1.0222","Electrical Consumables","MV","KIT,TERM:1C ;XLPE ;11KV; ID ;95-185 MM2","KIT,TERM:1C ;XLPE ;11KV; ID ;95-185 MM2",null,"Materials","ea",500,null,{"v":0,"d":"R0.00"}]
["1.0223","Electrical Consumables","MV","KIT,TERM:1C ;XLPE ;11KV; OD ;95-185 MM2","KIT,TERM:1C ;XLPE ;11KV; OD ;95-185 MM2",null,"Materials","ea",500,null,{"v":0,"d":"R0.00"}]
["1.0224","Electrical Consumables","MV","KIT,TERM:1C ;XLPE ;11KV; ID ;185-300 MM2","KIT,TERM:1C ;XLPE ;11KV; ID ;185-300 MM2",null,"Materials","ea",500,null,{"v":0,"d":"R0.00"}]
["1.0225","Electrical Consumables","MV","KIT,TERM:1C ;XLPE ;11KV; OD ;185-300 MM2","KIT,TERM:1C ;XLPE ;11KV; OD ;185-300 MM2",null,"Materials","ea",500,null,{"v":0,"d":"R0.00"}]
["1.0226","Electrical Consumables","MV","KIT,TERM:1C ;XLPE ;11KV ;ID ;400 MM2","KIT,TERM:1C ;XLPE ;11KV ;ID ;400 MM2",null,"Materials","ea",200,null,{"v":0,"d":"R0.00"}]
["1.0227","Electrical Consumables","MV","KIT,TERM:1C ;XLPE ;11KV ;OD ;400 MM2","KIT,TERM:1C ;XLPE ;11KV ;OD ;400 MM2",null,"Materials","ea",200,null,{"v":0,"d":"R0.00"}]
["1.0228","Electrical Consumables","MV","KIT,TERM:1C ;XLPE ;11KV ;ID ;500 MM2","KIT,TERM:1C ;XLPE ;11KV ;ID ;500 MM2",null,"Materials","ea",500,null,{"v":0,"d":"R0.00"}]
["1.0229","Electrical Consumables","MV","KIT,TERM:1C ;XLPE ;11KV ;OD ;500 MM2","KIT,TERM:1C ;XLPE ;11KV ;OD ;500 MM2",null,"Materials","ea",500,null,{"v":0,"d":"R0.00"}]
["1.0230","Electrical Consumables","MV","KIT,TERM:1C ;XLPE ;11KV; ID ;630 MM2","KIT,TERM:1C ;XLPE ;11KV; ID ;630 MM2",null,"Materials","ea",500,null,{"v":0,"d":"R0.00"}]
["1.0231","Electrical Consumables","MV","KIT,TERM:1C ;XLPE ;11KV; OD ;630 MM2","KIT,TERM:1C ;XLPE ;11KV; OD ;630 MM2",null,"Materials","ea",500,null,{"v":0,"d":"R0.00"}]
["1.0232","Electrical Consumables","MV","KIT,JOINT:1C ;XLPE ;11KV; 25-70 MM2","KIT,JOINT:1C ;XLPE ;11KV; 25-70 MM2",null,"Materials","ea",200,null,{"v":0,"d":"R0.00"}]
["1.0233","Electrical Consumables","MV","KIT,JOINT:1C ;XLPE ;11KV;50-120 MM2","KIT,JOINT:1C ;XLPE ;11KV;50-120 MM2",null,"Materials","ea",200,null,{"v":0,"d":"R0.00"}]
["1.0234","Electrical Consumables","MV","KIT,JOINT:1C ;XLPE ;11KV; 95-185 MM2","KIT,JOINT:1C ;XLPE ;11KV; 95-185 MM2",null,"Materials","ea",500,null,{"v":0,"d":"R0.00"}]
["1.0235","Electrical Consumables","MV","KIT,JOINT:1C ;XLPE ;11KV; 185-300 MM2","KIT,JOINT:1C ;XLPE ;11KV; 185-300 MM2",null,"Materials","ea",500,null,{"v":0,"d":"R0.00"}]
["1.0236","Electrical Consumables","MV","KIT,JOINT:1C ;XLPE ;11KV ;400 MM2","KIT,JOINT:1C ;XLPE ;11KV ;400 MM2",null,"Materials","ea",200,null,{"v":0,"d":"R0.00"}]
["1.0237","Electrical Consumables","MV","KIT,JOINT:1C ;XLPE ;11KV ;500 MM2","KIT,JOINT:1C ;XLPE ;11KV ;500 MM2",null,"Materials","ea",500,null,{"v":0,"d":"R0.00"}]
["1.0238","Electrical Consumables","MV","KIT,JOINT:1C ;XLPE ;11KV; 630 MM2","KIT,JOINT:1C ;XLPE ;11KV; 630 MM2",null,"Materials","ea",500,null,{"v":0,"d":"R0.00"}]
["1.0239","Electrical Consumables","MV","KIT,TERM:1C ;XLPE ;22KV; ID ;25-70 MM2","KIT,TERM:1C ;XLPE ;22KV; ID ;25-70 MM2",null,"Materials","ea",200,null,{"v":0,"d":"R0.00"}]
["1.0240","Electrical Consumables","MV","KIT,TERM:1C ;XLPE ;22KV; OD ;25-70 MM2","KIT,TERM:1C ;XLPE ;22KV; OD ;25-70 MM2",null,"Materials","ea",200,null,{"v":0,"d":"R0.00"}]
["1.0241","Electrical Consumables","MV","KIT,TERM:1C ;XLPE ;22KV; ID 50 -120MM2","KIT,TERM:1C ;XLPE ;22KV; ID 50 -120MM2",null,"Materials","ea",200,null,{"v":0,"d":"R0.00"}]
["1.0242","Electrical Consumables","MV","KIT,TERM:1C ;XLPE ;22KV; OD ;50-120 MM2","KIT,TERM:1C ;XLPE ;22KV; OD ;50-120 MM2",null,"Materials","ea",200,null,{"v":0,"d":"R0.00"}]
["1.0243","Electrical Consumables","MV","KIT,TERM:1C ;XLPE ;22KV; ID ;95-185 MM2","KIT,TERM:1C ;XLPE ;22KV; ID ;95-185 MM2",null,"Materials","ea",500,null,{"v":0,"d":"R0.00"}]
["1.0244","Electrical Consumables","MV","KIT,TERM:1C ;XLPE ;22KV; OD ;95-185 MM2","KIT,TERM:1C ;XLPE ;22KV; OD ;95-185 MM2",null,"Materials","ea",500,null,{"v":0,"d":"R0.00"}]
["1.0245","Electrical Consumables","MV","KIT,TERM:1C ;XLPE ;22KV; ID ;185-300 MM2","KIT,TERM:1C ;XLPE ;22KV; ID ;185-300 MM2",null,"Materials","ea",500,null,{"v":0,"d":"R0.00"}]
["1.0246","Electrical Consumables","MV","KIT,TERM:1C ;XLPE ;22KV; OD ;185-300 MM2","KIT,TERM:1C ;XLPE ;22KV; OD ;185-300 MM2",null,"Materials","ea",500,null,{"v":0,"d":"R0.00"}]
["1.0247","Electrical Consumables","MV","KIT,TERM:1C ;XLPE ;22KV ;ID ;400 MM2","KIT,TERM:1C ;XLPE ;22KV ;ID ;400 MM2",null,"Materials","ea",200,null,{"v":0,"d":"R0.00"}]
["1.0248","Electrical Consumables","MV","KIT,TERM:1C ;XLPE ;22KV ;OD ;400 MM2","KIT,TERM:1C ;XLPE ;22KV ;OD ;400 MM2",null,"Materials","ea",200,null,{"v":0,"d":"R0.00"}]
["1.0249","Electrical Consumables","MV","KIT,TERM:1C ;XLPE ;22KV ;ID ;500 MM2","KIT,TERM:1C ;XLPE ;22KV ;ID ;500 MM2",null,"Materials","ea",500,null,{"v":0,"d":"R0.00"}]
["1.0250","Electrical Consumables","MV","KIT,TERM:1C ;XLPE ;22KV ;OD ;500 MM2","KIT,TERM:1C ;XLPE ;22KV ;OD ;500 MM2",null,"Materials","ea",500,null,{"v":0,"d":"R0.00"}]
["1.0251","Electrical Consumables","MV","KIT,TERM:1C ;XLPE ;22KV; ID ;630 MM2","KIT,TERM:1C ;XLPE ;22KV; ID ;630 MM2",null,"Materials","ea",500,null,{"v":0,"d":"R0.00"}]
["1.0252","Electrical Consumables","MV","KIT,TERM:1C ;XLPE ;22KV; OD ;630 MM2","KIT,TERM:1C ;XLPE ;22KV; OD ;630 MM2",null,"Materials","ea",500,null,{"v":0,"d":"R0.00"}]
["1.0253","Electrical Consumables","MV","KIT,JOINT:1C ;XLPE ;22KV;;25-70 MM2","KIT,JOINT:1C ;XLPE ;22KV;;25-70 MM2",null,"Materials","ea",200,null,{"v":0,"d":"R0.00"}]
["1.0254","Electrical Consumables","MV","KIT,JOINT:1C ;XLPE ;22KV; 50-120 MM2","KIT,JOINT:1C ;XLPE ;22KV; 50-120 MM2",null,"Materials","ea",200,null,{"v":0,"d":"R0.00"}]
["1.0255","Electrical Consumables","MV","KIT,JOINT:1C ;XLPE ;22KV; 95-185 MM2","KIT,JOINT:1C ;XLPE ;22KV; 95-185 MM2",null,"Materials","ea",500,null,{"v":0,"d":"R0.00"}]
["1.0256","Electrical Consumables","MV","KIT,JOINT:1C ;XLPE ;22KV; 185-300 MM2","KIT,JOINT:1C ;XLPE ;22KV; 185-300 MM2",null,"Materials","ea",500,null,{"v":0,"d":"R0.00"}]
["1.0257","Electrical Consumables","MV","KIT,JOINT:1C ;XLPE ;22KV ;400 MM2","KIT,JOINT:1C ;XLPE ;22KV ;400 MM2",null,"Materials","ea",200,null,{"$f":"I263*J263","v":{"v":0,"d":"R0.00"}}]
["1.0258","Electrical Consumables","MV","KIT,JOINT:1C ;XLPE ;22KV ;500 MM2","KIT,JOINT:1C ;XLPE ;22KV ;500 MM2",null,"Materials","ea",200,null,{"v":0,"d":"R0.00"}]
["1.0259","Electrical Consumables","MV","KIT,JOINT:1C ;XLPE ;22KV; ;630 MM2","KIT,JOINT:1C ;XLPE ;22KV; ;630 MM2",null,"Materials","ea",500,null,{"v":0,"d":"R0.00"}]
["1.0260","Electrical Consumables","MV","KIT,JOINT:3C ;Transition  ;22KV;25-70 MM2","KIT,JOINT:3C ;Transition  ;22KV;25-70 MM2",null,"Materials","ea",200,null,{"v":0,"d":"R0.00"}]
["1.0261","Electrical Consumables","MV","KIT,JOINT:3C ;Transition ;22KV;  50 -120MM2","KIT,JOINT:3C ;Transition ;22KV;  50 -120MM2",null,"Materials","ea",200,null,{"v":0,"d":"R0.00"}]
["1.0262","Electrical Consumables","MV","KIT,JOINT:3C ;Transition ;22KV;95-185 MM2","KIT,JOINT:3C ;Transition ;22KV;95-185 MM2",null,"Materials","ea",500,null,{"v":0,"d":"R0.00"}]
["1.0263","Electrical Consumables","MV","KIT,JOINT:3C ;Transition ;22KV;185-300 MM2","KIT,JOINT:3C ;Transition ;22KV;185-300 MM2",null,"Materials","ea",500,null,{"v":0,"d":"R0.00"}]
["1.0264","Electrical Consumables","MV","KIT,JOINT:3C ;Transition ;22KV ;500 MM2","KIT,JOINT:3C ;Transition ;22KV ;500 MM2",null,"Materials","ea",500,null,{"v":0,"d":"R0.00"}]
["1.0265","Electrical Consumables","MV","KIT,JOINT:3C ;Transition ;22KV; ;630 MM2","KIT,JOINT:3C ;Transition ;22KV; ;630 MM2",null,"Materials","ea",500,null,{"v":0,"d":"R0.00"}]
["1.0266","Electrical Consumables",null,"Cable Gland Cleats08mm - 16mm ","Cable Gland Cleats","08mm - 16mm ","Materials","ea",1000,null,{"v":0,"d":"R0.00"}]
["1.0267","Electrical Consumables",null,"Cable Gland Cleats16mm - 32mm ","Cable Gland Cleats","16mm - 32mm ","Materials","ea",1000,null,{"v":0,"d":"R0.00"}]
["1.0268","Electrical Consumables",null,"Cable Gland Cleats53-57mm","Cable Gland Cleats","53-57mm","Materials","ea",1000,null,{"v":0,"d":"R0.00"}]
["1.0269","Electrical Consumables",null,"Cable Gland Cleats50-75mm","Cable Gland Cleats","50-75mm","Materials","ea",1000,null,{"v":0,"d":"R0.00"}]
["1.0270","Electrical Consumables",null,"Cable Gland Cleats75-100mm","Cable Gland Cleats","75-100mm","Materials","ea",1000,null,{"v":0,"d":"R0.00"}]
["1.0271","Electrical Consumables",null,"Cable Gland Cleats36 -52mm","Cable Gland Cleats","36 -52mm","Materials","ea",1000,null,{"v":0,"d":"R0.00"}]
["1.0272","Electrical Consumables",null,"Cable Gland Cleats46-51mm","Cable Gland Cleats","46-51mm","Materials","ea",1000,null,{"v":0,"d":"R0.00"}]
["1.0273","Electrical Consumables","LV","Blade Lug, Insulated 2FB9 Blue, Hellerman Tyton","Blade Lug, Insulated ","2FB9 Blue, Hellerman Tyton","Materials","ea",10000,null,{"v":0,"d":"R0.00"}]
["1.0274","Electrical Consumables","LV","Blade Lug, Insulated 2FB18 Blue, Hellerman Tyton","Blade Lug, Insulated ","2FB18 Blue, Hellerman Tyton","Materials","ea",10000,null,{"v":0,"d":"R0.00"}]
["1.0275","Electrical Consumables","LV","Blade Lug, Insulated 2FB13 Blue, Hellerman Tyton","Blade Lug, Insulated ","2FB13 Blue, Hellerman Tyton","Materials","ea",10000,null,{"v":0,"d":"R0.00"}]
["1.0276","Electrical Consumables","LV","Blue Lug (2,5 mm),4 mm Ring,  Insulated2R4 , Hellerman Tyton ","Blue Lug (2,5 mm),4 mm Ring,  Insulated","2R4 , Hellerman Tyton ","Materials","ea",5000,null,{"v":0,"d":"R0.00"}]
["1.0277","Electrical Consumables","LV","Blue Lug (2,5 mm),5 mm Ring,  Insulated2R5 , Hellerman Tyton ","Blue Lug (2,5 mm),5 mm Ring,  Insulated","2R5 , Hellerman Tyton ","Materials","ea",5000,null,{"v":0,"d":"R0.00"}]
["1.0278","Electrical Consumables","LV","Blue Lug (2,5 mm), 6mm Ring, Insulated2R6, Hellerman Tyton","Blue Lug (2,5 mm), 6mm Ring, Insulated","2R6, Hellerman Tyton","Materials","ea",5000,null,{"v":0,"d":"R0.00"}]
["1.0279","Electrical Consumables","LV","Blue Lug (2,5 mm), 8mm Ring, Insulated 2R8, Helerman Tyton ","Blue Lug (2,5 mm), 8mm Ring, Insulated ","2R8, Helerman Tyton ","Materials","ea",5000,null,{"v":0,"d":"R0.00"}]
["1.0280","Electrical Consumables","LV","Blue Lugs (2,5mm), 10mm Ring2R10, Helerman Tyton ","Blue Lugs (2,5mm), 10mm Ring","2R10, Helerman Tyton ","Materials","ea",5000,null,{"v":0,"d":"R0.00"}]
["1.0281","Electrical Consumables","LV","Pin Lug, Steel0.5","Pin Lug, Steel",0.5,"Materials","ea",5000,null,{"v":0,"d":"R0.00"}]
["1.0282","Electrical Consumables","LV","Boot Lace Ferrule, Lugs 1,0 Red ","Boot Lace Ferrule, Lugs ","1,0 Red ","Materials","ea",3000,null,{"v":0,"d":"R0.00"}]
["1.0283","Electrical Consumables","LV","Boot Lace Ferrule, Lugs 6mm Green","Boot Lace Ferrule, Lugs ","6mm Green","Materials","ea",3000,null,{"v":0,"d":"R0.00"}]
["1.0284","Electrical Consumables","LV","Boot Lace Ferrule, Lugs 35mm Red","Boot Lace Ferrule, Lugs ","35mm Red","Materials","ea",3000,null,{"v":0,"d":"R0.00"}]
["1.0285","Electrical Consumables","LV","Boot Lace Ferrule, Lugs 35mm Beige ","Boot Lace Ferrule, Lugs ","35mm Beige ","Materials","ea",3000,null,{"v":0,"d":"R0.00"}]
["1.0286","Electrical Consumables","LV","Boot Lace Ferrule, Lugs 10mm Brown","Boot Lace Ferrule, Lugs ","10mm Brown","Materials","ea",3000,null,{"v":0,"d":"R0.00"}]
["1.0287","Electrical Consumables","LV","Boot Lace Ferrule, Lugs 25 mm Brown","Boot Lace Ferrule, Lugs ","25 mm Brown","Materials","ea",3000,null,{"v":0,"d":"R0.00"}]
["1.0288","Electrical Consumables","LV","Boot Lace Ferrule, Lugs 2.5mm Grey ","Boot Lace Ferrule, Lugs ","2.5mm Grey ","Materials","ea",3000,null,{"v":0,"d":"R0.00"}]
["1.0289","Electrical Consumables","LV","Boot Lace Ferrule, Lugs 2.5mm Blue","Boot Lace Ferrule, Lugs ","2.5mm Blue","Materials","ea",3000,null,{"v":0,"d":"R0.00"}]
["1.0290","Electrical Consumables","LV","Boot Lace Ferrule, Lugs 2.5mm Ivory ","Boot Lace Ferrule, Lugs ","2.5mm Ivory ","Materials","ea",3000,null,{"v":0,"d":"R0.00"}]
["1.0291","Electrical Consumables","LV","Boot Lace Ferrule, Lugs 16-18mm Ivory ","Boot Lace Ferrule, Lugs ","16-18mm Ivory ","Materials","ea",3000,null,{"v":0,"d":"R0.00"}]
["1.0292","Electrical Consumables","LV","Boot Lace Ferrule, Lugs 16mm ","Boot Lace Ferrule, Lugs ","16mm ","Materials","ea",3000,null,{"v":0,"d":"R0.00"}]
["1.0293","Electrical Consumables","LV","Boot Lace Ferrule, Lugs 25mm Black ","Boot Lace Ferrule, Lugs ","25mm Black ","Materials","ea",3000,null,{"v":0,"d":"R0.00"}]
["1.0294","Electrical Consumables","LV","Boot Lace Ferrule, Lugs 1,5mm Black","Boot Lace Ferrule, Lugs ","1,5mm Black","Materials","ea",3000,null,{"v":0,"d":"R0.00"}]
["1.0295","Electrical Consumables","LV","Boot Lace Ferrule, Lugs 1,5mm Blue","Boot Lace Ferrule, Lugs ","1,5mm Blue","Materials","ea",3000,null,{"v":0,"d":"R0.00"}]
["1.0296","Electrical Consumables","LV","Boot Lace Ferrule, Lugs 1.5mm Yellow","Boot Lace Ferrule, Lugs ","1.5mm Yellow","Materials","ea",3000,null,{"v":0,"d":"R0.00"}]
["1.0297","Electrical Consumables","LV","Boot Lace Ferrule, Lugs 1.5mm Red","Boot Lace Ferrule, Lugs ","1.5mm Red","Materials","ea",3000,null,{"v":0,"d":"R0.00"}]
["1.0298","Electrical Consumables","LV","Boot Lace Ferrule, Lugs 4mm Orange ","Boot Lace Ferrule, Lugs ","4mm Orange ","Materials","ea",3000,null,{"v":0,"d":"R0.00"}]
["1.0299","Electrical Consumables","LV","Boot Lace Ferrule, Lugs 6mm Green","Boot Lace Ferrule, Lugs ","6mm Green","Materials","ea",3000,null,{"v":0,"d":"R0.00"}]
["1.0300","Electrical Consumables","LV","Boot Lace Ferrule, Lugs 0,50mm White ","Boot Lace Ferrule, Lugs ","0,50mm White ","Materials","ea",3000,null,{"v":0,"d":"R0.00"}]
["1.0301","Electrical Consumables","LV","Boot Lace Ferrule, Lugs 0,50mm Grey","Boot Lace Ferrule, Lugs ","0,50mm Grey","Materials","ea",3000,null,{"v":0,"d":"R0.00"}]
["1.0302","Electrical Consumables","LV","Boot Lace Ferrule, Lugs 16mmGreen ","Boot Lace Ferrule, Lugs ","16mmGreen ","Materials","ea",3000,null,{"v":0,"d":"R0.00"}]
["1.0303","Electrical Consumables","LV","Boot Lace Ferrule, Lugs 6mm Yellow ","Boot Lace Ferrule, Lugs ","6mm Yellow ","Materials","ea",3000,null,{"v":0,"d":"R0.00"}]
["1.0304","Electrical Consumables","LV","Boot Lace Ferrule, Lugs 1,5mm Red","Boot Lace Ferrule, Lugs ","1,5mm Red","Materials","ea",3000,null,{"v":0,"d":"R0.00"}]
["1.0305","Electrical Consumables","LV","Boot Lace Ferrule, Lugs 10mm Ivory ","Boot Lace Ferrule, Lugs ","10mm Ivory ","Materials","ea",3000,null,{"v":0,"d":"R0.00"}]
["1.0306","Electrical Consumables","LV","Boot Lace Ferrule, Lugs 16mm brown ","Boot Lace Ferrule, Lugs ","16mm brown ","Materials","ea",3000,null,{"v":0,"d":"R0.00"}]
["1.0307","Electrical Consumables","LV","Boot Lace Ferrule, Lugs 50mm Green","Boot Lace Ferrule, Lugs ","50mm Green","Materials","ea",3000,null,{"v":0,"d":"R0.00"}]
["1.0308","Electrical Consumables",null,"Electrical Insolation TapeBlack","Electrical Insolation Tape","Black","Materials","ea",50000,null,{"v":0,"d":"R0.00"}]
["1.0309","Electrical Consumables",null,"Electrical Insolation TapeRed","Electrical Insolation Tape","Red","Materials","ea",50000,null,{"v":0,"d":"R0.00"}]
["1.0310","Electrical Consumables",null,"Electrical Insolation TapeWhite","Electrical Insolation Tape","White","Materials","ea",50000,null,{"v":0,"d":"R0.00"}]
["1.0311","Electrical Consumables",null,"Electrical Insolation TapeBlue","Electrical Insolation Tape","Blue","Materials","ea",50000,null,{"v":0,"d":"R0.00"}]
["1.0312","Electrical Consumables",null,"Electrical Insolation TapeYellow","Electrical Insolation Tape","Yellow","Materials","ea",50000,null,{"v":0,"d":"R0.00"}]
["1.0313","Electrical Consumables",null,"Electrical Insolation TapeGreen","Electrical Insolation Tape","Green","Materials","ea",50000,null,{"v":0,"d":"R0.00"}]
["1.0314","Electrical Consumables",null,"Electrical Insolation TapeGreen/Yellow","Electrical Insolation Tape","Green/Yellow","Materials","ea",50000,null,{"v":0,"d":"R0.00"}]
["1.0315","Electrical Consumables","Glands","Gland reducer25 - 20","Gland reducer","25 - 20","Materials","ea",2000,null,{"v":0,"d":"R0.00"}]
["1.0316","Electrical Consumables","Glands","Gland reducer32 - 20","Gland reducer","32 - 20","Materials","ea",2000,null,{"v":0,"d":"R0.00"}]
["1.0317","Electrical Consumables","Glands","Gland reducer32 - 25","Gland reducer","32 - 25","Materials","ea",2000,null,{"v":0,"d":"R0.00"}]
["1.0318","Electrical Consumables","Glands","Gland reducer40 - 20","Gland reducer","40 - 20","Materials","ea",2000,null,{"v":0,"d":"R0.00"}]
["1.0319","Electrical Consumables","Glands","Gland reducer40 - 25","Gland reducer","40 - 25","Materials","ea",2000,null,{"v":0,"d":"R0.00"}]
["1.0320","Electrical Consumables","Glands","Gland reducer40 - 32 ","Gland reducer","40 - 32 ","Materials","ea",2000,null,{"v":0,"d":"R0.00"}]
["1.0321","Electrical Consumables","Glands","Gland reducer50-20","Gland reducer","50-20","Materials","ea",2000,null,{"$f":"I327*J327","v":{"v":0,"d":"R0.00"}}]
["1.0322","Electrical Consumables","Glands","Gland reducer50-40","Gland reducer","50-40","Materials","ea",2000,null,{"v":0,"d":"R0.00"}]
["1.0323","Electrical Consumables","Glands","Gland reducer50 - 32","Gland reducer","50 - 32","Materials","ea",2000,null,{"v":0,"d":"R0.00"}]
["1.0324","Electrical Consumables","Glands","Gland reducer50 - 25","Gland reducer","50 - 25","Materials","ea",2000,null,{"v":0,"d":"R0.00"}]
["1.0325","Electrical Consumables","Glands","Gland reducer63 - 32","Gland reducer","63 - 32","Materials","ea",2000,null,{"v":0,"d":"R0.00"}]
["1.0326","Electrical Consumables","Glands","Gland reducer63 - 40","Gland reducer","63 - 40","Materials","ea",2000,null,{"v":0,"d":"R0.00"}]
["1.0327","Electrical Consumables","Glands","Gland reducer63 - 50","Gland reducer","63 - 50","Materials","ea",2000,null,{"v":0,"d":"R0.00"}]
["1.0328","Electrical Consumables","Glands","Gland reducer75-63","Gland reducer","75-63","Materials","ea",2000,null,{"v":0,"d":"R0.00"}]
["1.0329","Electrical Consumables","Glands","Gland reducer CCG, EXEM50 -  M40","Gland reducer CCG, EXE","M50 -  M40","Materials","ea",2000,null,{"v":0,"d":"R0.00"}]
["1.0330","Electrical Consumables","Glands","Gland reducer CCG, EXEM40 - M25","Gland reducer CCG, EXE","M40 - M25","Materials","ea",2000,null,{"v":0,"d":"R0.00"}]
["1.0331","Electrical Consumables","Glands","Gland reducer CCG, EXEM40 - M20","Gland reducer CCG, EXE","M40 - M20","Materials","ea",2000,null,{"v":0,"d":"R0.00"}]
["1.0332","Electrical Consumables","Glands","Gland reducer CCG, EXEM40 - M32","Gland reducer CCG, EXE","M40 - M32","Materials","ea",2000,null,{"v":0,"d":"R0.00"}]
["1.0333","Electrical Consumables","Glands","Gland reducer CCG, EXEM32 - M25","Gland reducer CCG, EXE","M32 - M25","Materials","ea",2000,null,{"v":0,"d":"R0.00"}]
["1.0334","Electrical Consumables","Glands","Gland reducer CCG, EXEM32 - M20","Gland reducer CCG, EXE","M32 - M20","Materials","ea",2000,null,{"v":0,"d":"R0.00"}]
["1.0335","Electrical Consumables","Glands","Gland reducer CCG, EXEM25 - M20","Gland reducer CCG, EXE","M25 - M20","Materials","ea",2000,null,{"v":0,"d":"R0.00"}]
["1.0336","Electrical Consumables","Glands","Gland reducer CCG, EXEM50 - M20","Gland reducer CCG, EXE","M50 - M20","Materials","ea",2000,null,{"v":0,"d":"R0.00"}]
["1.0337","Electrical Consumables","Glands","Gland reducer CCG, EXEM50 - M25","Gland reducer CCG, EXE","M50 - M25","Materials","ea",2000,null,{"v":0,"d":"R0.00"}]
["1.0338","Electrical Consumables","Glands","Gland reducer CCG, EXEM50 - M32","Gland reducer CCG, EXE","M50 - M32","Materials","ea",2000,null,{"v":0,"d":"R0.00"}]
["1.0339","Electrical Consumables","Glands","Gland reducer CCG, EXEM75-63","Gland reducer CCG, EXE","M75-63","Materials","ea",2000,null,{"v":0,"d":"R0.00"}]
["1.0340","Electrical Consumables","Glands","Gland reducer CCG, EXEM63-50","Gland reducer CCG, EXE","M63-50","Materials","ea",2000,null,{"v":0,"d":"R0.00"}]
["1.0341","Electrical Consumables","Glands","Gland reducer CCG, EXEM63 - 40","Gland reducer CCG, EXE","M63 - 40","Materials","ea",2000,null,{"v":0,"d":"R0.00"}]
["1.0342","Electrical Consumables","Glands","Gland reducer CCG, EXEM63 - 32","Gland reducer CCG, EXE","M63 - 32","Materials","ea",2000,null,{"v":0,"d":"R0.00"}]
["1.0343","Electrical Consumables","Glands","Gromets 20mm","Gromets ","20mm","Materials","ea",2000,null,{"v":0,"d":"R0.00"}]
["1.0344","Electrical Consumables","Glands","Gromets 25mm","Gromets ","25mm","Materials","ea",2000,null,{"v":0,"d":"R0.00"}]
["1.0345","Electrical Consumables","Glands","Gromets 32mm","Gromets ","32mm","Materials","ea",2000,null,{"v":0,"d":"R0.00"}]
["1.0346","Electrical Consumables","Glands","Gromets 38/40mm","Gromets ","38/40mm","Materials","ea",2000,null,{"v":0,"d":"R0.00"}]
["1.0347","Electrical Consumables","Glands","Gromets 31.8mm","Gromets ","31.8mm","Materials","ea",2000,null,{"v":0,"d":"R0.00"}]
["1.0348","Electrical Consumables","Glands","Gromets 50mm","Gromets ","50mm","Materials","ea",2000,null,{"v":0,"d":"R0.00"}]
["1.0349","Electrical Consumables","Heat Shrink ","Wraparound, 32 to 86mm (Zip Sleave)","Wraparound, 32 to 86mm (Zip Sleave)",null,"Materials","m",1000,null,{"v":0,"d":"R0.00"}]
["1.0350","Electrical Consumables","Heat Shrink ","Wraparound, 22 to 68mm (Zip Sleave)","Wraparound, 22 to 68mm (Zip Sleave)",null,"Materials","m",1000,null,{"v":0,"d":"R0.00"}]
["1.0351","Electrical Consumables","Heat Shrink ","Heat Shrink 1.5mm , Yellow/Green","Heat Shrink ","1.5mm , Yellow/Green","Materials","m",2000,null,{"v":0,"d":"R0.00"}]
["1.0352","Electrical Consumables","Heat Shrink ","Heat Shrink sleve3,2mm to 1,6mm-Red ","Heat Shrink sleve","3,2mm to 1,6mm-Red ","Materials","m",2000,null,{"v":0,"d":"R0.00"}]
["1.0353","Electrical Consumables","Heat Shrink ","Heat Shrink sleve3,2mm to 1,6mm-Black","Heat Shrink sleve","3,2mm to 1,6mm-Black","Materials","m",2000,null,{"v":0,"d":"R0.00"}]
["1.0354","Electrical Consumables","Heat Shrink ","Heat Shrink sleve3,2mm to 1,6mm-Blue","Heat Shrink sleve","3,2mm to 1,6mm-Blue","Materials","m",2000,null,{"v":0,"d":"R0.00"}]
["1.0355","Electrical Consumables","Heat Shrink ","Heat Shrink sleve3,2mm to 1,6mm-White ","Heat Shrink sleve","3,2mm to 1,6mm-White ","Materials","m",2000,null,{"v":0,"d":"R0.00"}]
["1.0356","Electrical Consumables","Heat Shrink ","Heat Shrink sleve3,2mm to 1,6mm-Green/Yellow ","Heat Shrink sleve","3,2mm to 1,6mm-Green/Yellow ","Materials","m",2000,null,{"v":0,"d":"R0.00"}]
["1.0357","Electrical Consumables","Heat Shrink ","Heat Shrink sleve3,2mm to 1,6mm-Yellow ","Heat Shrink sleve","3,2mm to 1,6mm-Yellow ","Materials","m",2000,null,{"v":0,"d":"R0.00"}]
["1.0358","Electrical Consumables","Heat Shrink ","Heat Shrink sleve4,8mm to 2,4mm - Black","Heat Shrink sleve","4,8mm to 2,4mm - Black","Materials","m",2000,null,{"v":0,"d":"R0.00"}]
["1.0359","Electrical Consumables","Heat Shrink ","Heat Shrink sleve4,8mm to 2,4mm - White ","Heat Shrink sleve","4,8mm to 2,4mm - White ","Materials","m",2000,null,{"v":0,"d":"R0.00"}]
["1.0360","Electrical Consumables","Heat Shrink ","Heat Shrink sleve4,8mm to 2,4mm - Red","Heat Shrink sleve","4,8mm to 2,4mm - Red","Materials","m",2000,null,{"v":0,"d":"R0.00"}]
["1.0361","Electrical Consumables","Heat Shrink ","Heat Shrink sleve4,8mm to 2,4mm - Yellow","Heat Shrink sleve","4,8mm to 2,4mm - Yellow","Materials","m",2000,null,{"v":0,"d":"R0.00"}]
["1.0362","Electrical Consumables","Heat Shrink ","Heat Shrink sleve4,8mm to 2,4mm - Green","Heat Shrink sleve","4,8mm to 2,4mm - Green","Materials","m",2000,null,{"v":0,"d":"R0.00"}]
["1.0363","Electrical Consumables","Heat Shrink ","Heat Shrink sleve4,8mm to 2,4mm - Blue ","Heat Shrink sleve","4,8mm to 2,4mm - Blue ","Materials","m",2000,null,{"v":0,"d":"R0.00"}]
["1.0364","Electrical Consumables","Heat Shrink ","Heat Shrink sleve4,8mm to 2,4mm - Green/Yellow","Heat Shrink sleve","4,8mm to 2,4mm - Green/Yellow","Materials","m",2000,null,{"v":0,"d":"R0.00"}]
["1.0365","Electrical Consumables","Heat Shrink ","Heat Shrink sleve9,5mm to 4,7mm- Black","Heat Shrink sleve","9,5mm to 4,7mm- Black","Materials","m",2000,null,{"v":0,"d":"R0.00"}]
["1.0366","Electrical Consumables","Heat Shrink ","Heat Shrink sleve9,5mm to 4,7mm - Blue","Heat Shrink sleve","9,5mm to 4,7mm - Blue","Materials","m",2000,null,{"v":0,"d":"R0.00"}]
["1.0367","Electrical Consumables","Heat Shrink ","Heat Shrink sleve9,5mm to 4,7mm - Red","Heat Shrink sleve","9,5mm to 4,7mm - Red","Materials","m",2000,null,{"v":0,"d":"R0.00"}]
["1.0368","Electrical Consumables","Heat Shrink ","Heat Shrink sleve9,5mm to 4,7mm - White","Heat Shrink sleve","9,5mm to 4,7mm - White","Materials","m",2000,null,{"v":0,"d":"R0.00"}]
["1.0369","Electrical Consumables","Heat Shrink ","Heat Shrink sleve9,5mm to 4,7mm - Gre + Yellow","Heat Shrink sleve","9,5mm to 4,7mm - Gre + Yellow","Materials","m",2000,null,{"v":0,"d":"R0.00"}]
["1.0370","Electrical Consumables","Heat Shrink ","Heat Shrink sleve12,7mm to 6,4mm  - Black","Heat Shrink sleve","12,7mm to 6,4mm  - Black","Materials","m",2000,null,{"v":0,"d":"R0.00"}]
["1.0371","Electrical Consumables","Heat Shrink ","Heat Shrink sleve12,7mm to 6,4mm - Blue","Heat Shrink sleve","12,7mm to 6,4mm - Blue","Materials","m",2000,null,{"v":0,"d":"R0.00"}]
["1.0372","Electrical Consumables","Heat Shrink ","Heat Shrink sleve12,7mm to 6,4mm - Red","Heat Shrink sleve","12,7mm to 6,4mm - Red","Materials","m",2000,null,{"v":0,"d":"R0.00"}]
["1.0373","Electrical Consumables","Heat Shrink ","Heat Shrink sleve12,7mm to 6,4mm  - White","Heat Shrink sleve","12,7mm to 6,4mm  - White","Materials","m",2000,null,{"v":0,"d":"R0.00"}]
["1.0374","Electrical Consumables","Heat Shrink ","Heat Shrink sleve12,7mm to 6,4mm- Gre + Yell","Heat Shrink sleve","12,7mm to 6,4mm- Gre + Yell","Materials","m",2000,null,{"v":0,"d":"R0.00"}]
["1.0375","Electrical Consumables","Heat Shrink ","Heat Shrink sleve12,7mm to 6,4mm  Yellow","Heat Shrink sleve","12,7mm to 6,4mm  Yellow","Materials","m",2000,null,{"v":0,"d":"R0.00"}]
["1.0376","Electrical Consumables","Heat Shrink ","Heat Shrink sleve19,1mm to 9,5mm - Black","Heat Shrink sleve","19,1mm to 9,5mm - Black","Materials","m",2000,null,{"v":0,"d":"R0.00"}]
["1.0377","Electrical Consumables","Heat Shrink ","Heat Shrink sleve19,1mm to 9,5mm - Blue","Heat Shrink sleve","19,1mm to 9,5mm - Blue","Materials","m",2000,null,{"v":0,"d":"R0.00"}]
["1.0378","Electrical Consumables","Heat Shrink ","Heat Shrink sleve19,1mm to 9,5mm - Red","Heat Shrink sleve","19,1mm to 9,5mm - Red","Materials","m",2000,null,{"v":0,"d":"R0.00"}]
["1.0379","Electrical Consumables","Heat Shrink ","Heat Shrink sleve19,1mm to 9,5mm - White","Heat Shrink sleve","19,1mm to 9,5mm - White","Materials","m",2000,null,{"v":0,"d":"R0.00"}]
["1.0380","Electrical Consumables","Heat Shrink ","Heat Shrink sleve19,1mm to 9,5mm - Gre + Yell","Heat Shrink sleve","19,1mm to 9,5mm - Gre + Yell","Materials","m",2000,null,{"v":0,"d":"R0.00"}]
["1.0381","Electrical Consumables","Heat Shrink ","Heat Shrink sleve25,4mm to 12,7 mm- Black","Heat Shrink sleve","25,4mm to 12,7 mm- Black","Materials","m",2000,null,{"v":0,"d":"R0.00"}]
["1.0382","Electrical Consumables","Heat Shrink ","Heat Shrink sleve25,4mm to 12,7mm - Blue","Heat Shrink sleve","25,4mm to 12,7mm - Blue","Materials","m",2000,null,{"v":0,"d":"R0.00"}]
["1.0383","Electrical Consumables","Heat Shrink ","Heat Shrink sleve25,4mmto 12,7mm - Red","Heat Shrink sleve","25,4mmto 12,7mm - Red","Materials","m",2000,null,{"v":0,"d":"R0.00"}]
["1.0384","Electrical Consumables","Heat Shrink ","Heat Shrink sleve25,4mm to 12,7mm  - White","Heat Shrink sleve","25,4mm to 12,7mm  - White","Materials","m",2000,null,{"v":0,"d":"R0.00"}]
["1.0385","Electrical Consumables","Heat Shrink ","Heat Shrink sleve25,4mm to 12,7mm - Gre + Yell","Heat Shrink sleve","25,4mm to 12,7mm - Gre + Yell","Materials","m",2000,null,{"$f":"I391*J391","v":{"v":0,"d":"R0.00"}}]
["1.0386","Electrical Consumables","Heat Shrink ","Heat Shrink sleve25,4mm to 12,7mm -  Yellow","Heat Shrink sleve","25,4mm to 12,7mm -  Yellow","Materials","m",2000,null,{"v":0,"d":"R0.00"}]
["1.0387","Electrical Consumables","Heat Shrink ","Heat Shrink sleve38,1mm to 19,1mm - Black","Heat Shrink sleve","38,1mm to 19,1mm - Black","Materials","m",2000,null,{"v":0,"d":"R0.00"}]
["1.0388","Electrical Consumables","Heat Shrink ","Heat Shrink sleve38,1mm to 19,1mm - Blue","Heat Shrink sleve","38,1mm to 19,1mm - Blue","Materials","m",2000,null,{"v":0,"d":"R0.00"}]
["1.0389","Electrical Consumables","Heat Shrink ","Heat Shrink sleve38,1mm to 19,1mm - Red","Heat Shrink sleve","38,1mm to 19,1mm - Red","Materials","m",2000,null,{"v":0,"d":"R0.00"}]
["1.0390","Electrical Consumables","Heat Shrink ","Heat Shrink sleve38,1mm to 19,1mm - White ","Heat Shrink sleve","38,1mm to 19,1mm - White ","Materials","m",2000,null,{"v":0,"d":"R0.00"}]
["1.0391","Electrical Consumables","Heat Shrink ","Heat Shrink sleve38,1mm to 19,1mm - Gre + Yell","Heat Shrink sleve","38,1mm to 19,1mm - Gre + Yell","Materials","m",2000,null,{"v":0,"d":"R0.00"}]
["1.0392","Electrical Consumables","Heat Shrink ","Heat Shrink sleve38,1mm to 19,1mm - Yellow","Heat Shrink sleve","38,1mm to 19,1mm - Yellow","Materials","m",2000,null,{"v":0,"d":"R0.00"}]
["1.0393","Electrical Consumables","Heat Shrink ","Heat Shrink sleve50,8mm to 25,4mm - Black","Heat Shrink sleve","50,8mm to 25,4mm - Black","Materials","m",2000,null,{"v":0,"d":"R0.00"}]
["1.0394","Electrical Consumables","Heat Shrink ","Heat Shrink sleve50,8mm to 25,4mm - Blue","Heat Shrink sleve","50,8mm to 25,4mm - Blue","Materials","m",2000,null,{"v":0,"d":"R0.00"}]
["1.0395","Electrical Consumables","Heat Shrink ","Heat Shrink sleve50,8mm to 25,4mm - Red","Heat Shrink sleve","50,8mm to 25,4mm - Red","Materials","m",2000,null,{"v":0,"d":"R0.00"}]
["1.0396","Electrical Consumables","Heat Shrink ","Heat Shrink sleve50,8mm to 25,4mm - White","Heat Shrink sleve","50,8mm to 25,4mm - White","Materials","m",2000,null,{"v":0,"d":"R0.00"}]
["1.0397","Electrical Consumables","Heat Shrink ","Heat Shrink sleve50,8mm to 25,4mm - Gre+ Yell","Heat Shrink sleve","50,8mm to 25,4mm - Gre+ Yell","Materials","m",2000,null,{"v":0,"d":"R0.00"}]
["1.0398","Electrical Consumables","Heat Shrink ","Heat Shrink sleve50,8mm to 25,4mm - Yellow","Heat Shrink sleve","50,8mm to 25,4mm - Yellow","Materials","m",2000,null,{"v":0,"d":"R0.00"}]
["1.0399","Electrical Consumables","Heat Shrink ","Heat Shrink sleve76,2mm to 38,1mm x 30- Red","Heat Shrink sleve","76,2mm to 38,1mm x 30- Red","Materials","m",2000,null,{"v":0,"d":"R0.00"}]
["1.0400","Electrical Consumables","Heat Shrink ","Heat Shrink sleve76,2mm to 38,1mm x 30 - Black","Heat Shrink sleve","76,2mm to 38,1mm x 30 - Black","Materials","m",2000,null,{"v":0,"d":"R0.00"}]
["1.0401","Electrical Consumables","Heat Shrink ","Heat Shrink sleve76,2mm to 38,1mm  x 30- Blue","Heat Shrink sleve","76,2mm to 38,1mm  x 30- Blue","Materials","m",2000,null,{"v":0,"d":"R0.00"}]
["1.0402","Electrical Consumables","Heat Shrink ","Heat Shrink sleve76,2mm to 38,1mm x 30 - White","Heat Shrink sleve","76,2mm to 38,1mm x 30 - White","Materials","m",2000,null,{"v":0,"d":"R0.00"}]
["1.0403","Electrical Consumables","Heat Shrink ","Heat Shrink sleve76,2mm to 38,1mm x 30 - Green/Yel","Heat Shrink sleve","76,2mm to 38,1mm x 30 - Green/Yel","Materials","m",2000,null,{"v":0,"d":"R0.00"}]
["1.0404","Electrical Consumables","Heat Shrink ","Heat Shrink sleve76,2mm to 38,1mm x 30 - Yellow","Heat Shrink sleve","76,2mm to 38,1mm x 30 - Yellow","Materials","m",2000,null,{"v":0,"d":"R0.00"}]
["1.0405","Electrical Consumables","Gland Plates","Hole Plugs (Stoppers)9,5mm","Hole Plugs (Stoppers)","9,5mm","Materials","ea",1000,null,{"v":0,"d":"R0.00"}]
["1.0406","Electrical Consumables","Gland Plates","Hole Plugs (Stoppers)14,3mm","Hole Plugs (Stoppers)","14,3mm","Materials","ea",1000,null,{"v":0,"d":"R0.00"}]
["1.0407","Electrical Consumables","Gland Plates","Hole Plugs (Stoppers)20mm","Hole Plugs (Stoppers)","20mm","Materials","ea",1000,null,{"v":0,"d":"R0.00"}]
["1.0408","Electrical Consumables","Gland Plates","Hole Plugs (Stoppers)25mm","Hole Plugs (Stoppers)","25mm","Materials","ea",1000,null,{"v":0,"d":"R0.00"}]
["1.0409","Electrical Consumables","Gland Plates","Hole Plugs (Stoppers)32mm","Hole Plugs (Stoppers)","32mm","Materials","ea",1000,null,{"v":0,"d":"R0.00"}]
["1.0410","Electrical Consumables","Gland Plates","Hole Plugs (Stoppers)38mm","Hole Plugs (Stoppers)","38mm","Materials","ea",1000,null,{"v":0,"d":"R0.00"}]
["1.0411","Electrical Consumables","Gland Plates","Hole Plugs (Stoppers)40mm","Hole Plugs (Stoppers)","40mm","Materials","ea",1000,null,{"v":0,"d":"R0.00"}]
["1.0412","Electrical Consumables","Heat Shrink ","Tube Anti Track, Red50-16mm","Tube Anti Track, Red","50-16mm","Materials","m",1000,null,{"v":0,"d":"R0.00"}]
["1.0413","Electrical Consumables","Heat Shrink ","Tube Anti Track, Red38-12mm","Tube Anti Track, Red","38-12mm","Materials","m",1000,null,{"v":0,"d":"R0.00"}]
["1.0414","Electrical Consumables","Cleats ","Trefoil Clamp 51mm","Trefoil Clamp ","51mm","Materials","ea",500,null,{"v":0,"d":"R0.00"}]
["1.0415","Electrical Consumables","Cleats ","Trefoil Clamp 101mm","Trefoil Clamp ","101mm","Materials","ea",500,null,{"v":0,"d":"R0.00"}]
["1.0416","Electrical Consumables","Cleats ","Trefoil Clamp 90mm","Trefoil Clamp ","90mm","Materials","ea",500,null,{"v":0,"d":"R0.00"}]
["1.0417","Electrical Consumables","Cleats ","Trefoil Clamp 71mm","Trefoil Clamp ","71mm","Materials","ea",500,null,{"v":0,"d":"R0.00"}]
["1.0418","Electrical Consumables","Cable Ties","Cable TiesT18R - Black, (100 per Pack)","Cable Ties","T18R - Black, (100 per Pack)","Materials","Pckts",50000,null,{"v":0,"d":"R0.00"}]
["1.0419","Electrical Consumables","Cable Ties","Cable TiesT30R - Black, (100 per Pack)","Cable Ties","T30R - Black, (100 per Pack)","Materials","Pckts",50000,null,{"v":0,"d":"R0.00"}]
["1.0420","Electrical Consumables","Cable Ties","Cable TiesT50R - Black (100 per Pack)","Cable Ties","T50R - Black (100 per Pack)","Materials","Pckts",50000,null,{"v":0,"d":"R0.00"}]
["1.0421","Electrical Consumables","Cable Ties","Cable TiesT120R - Black ( 50 per Pack)","Cable Ties","T120R - Black ( 50 per Pack)","Materials","Pckts",0,null,{"v":0,"d":"R0.00"}]
["1.0422","Electrical Consumables","Cable Ties","Cable TiesT50L - Black ( 50 per Pack)","Cable Ties","T50L - Black ( 50 per Pack)","Materials","Pckts",0,null,{"v":0,"d":"R0.00"}]
["1.0423","Electrical Consumables","Cable Ties","Cable TiesT120R - Black ( 50 per Pack)","Cable Ties","T120R - Black ( 50 per Pack)","Materials","Pckts",50000,null,{"v":0,"d":"R0.00"}]
["1.0424","Electrical Consumables","Cable Ties","Cable TiesT50L - Black ( 50 per Pack)","Cable Ties","T50L - Black ( 50 per Pack)","Materials","Pckts",50000,null,{"v":0,"d":"R0.00"}]
["1.0425","Electrical Consumables","Cable Ties","SS Ties (50 Per Pack) 12.7 x 434mm","SS Ties (50 Per Pack) ","12.7 x 434mm","Materials","Pckts",5000,null,{"v":0,"d":"R0.00"}]
["1.0426","Electrical Consumables","Cable Ties","SS Ties (50 Per Pack) 12.7 x 440mm","SS Ties (50 Per Pack) ","12.7 x 440mm","Materials","Pckts",5000,null,{"v":0,"d":"R0.00"}]
["1.0427","Electrical Consumables","Cable Ties","SS Ties (50 Per Pack) 7.9mm x 360mm","SS Ties (50 Per Pack) ","7.9mm x 360mm","Materials","Pckts",5000,null,{"v":0,"d":"R0.00"}]
["1.0428","Electrical Consumables","Cable Ties","SS Ties (50 Per Pack) 7.9mm x 250mm","SS Ties (50 Per Pack) ","7.9mm x 250mm","Materials","Pckts",5000,null,{"v":0,"d":"R0.00"}]
["1.0429","Electrical Consumables","Cable Ties","SS Ties (50 Per Pack) 7.9mm x 200mm","SS Ties (50 Per Pack) ","7.9mm x 200mm","Materials","Pckts",5000,null,{"v":0,"d":"R0.00"}]
["1.0430","Electrical Consumables",null,"Rags5KG","Rags","5KG","Materials","Bags",2000,null,{"v":0,"d":"R0.00"}]
["1.0431","Electrical Consumables","EARTHING","Crimping Clamps, 10mm Dia C-Crimpets","Crimping Clamps, 10mm Dia C-Crimpets",null,"Materials","ea",2500,null,{"v":0,"d":"R0.00"}]
["1.0432","Electrical Consumables","EARTHING","Copper Rod SolidM10","Copper Rod Solid","M10","Materials","Kg",10000,null,{"v":0,"d":"R0.00"}]
["1.0433","Electrical Consumables","MV","Ti-focating Kit, Isotech, 22KV95-185, 3 Core, Screened ","Ti-focating Kit, Isotech, 22KV","95-185, 3 Core, Screened ","Materials","ea",500,null,{"v":0,"d":"R0.00"}]
["1.0434","Electrical Consumables",null,"PVC Gland NO 0","PVC Gland NO 0",null,"Materials","ea",5000,null,{"v":0,"d":"R0.00"}]
["1.0435","Electrical Consumables",null,"PVC Gland NO 1","PVC Gland NO 1",null,"Materials","ea",5000,null,{"v":0,"d":"R0.00"}]
["1.0436","Electrical Consumables",null,"Insulation tape red","Insulation tape red",null,"Materials","ea",0,null,{"v":0,"d":"R0.00"}]
["1.0437","Electrical Consumables",null,"Insulation tape  white","Insulation tape  white",null,"Materials","ea",0,null,{"v":0,"d":"R0.00"}]
["1.0438","Electrical Consumables",null,"Insulation tape blue","Insulation tape blue",null,"Materials","ea",0,null,{"v":0,"d":"R0.00"}]
["1.0439","Electrical Consumables",null,"Insulation tape green","Insulation tape green",null,"Materials","ea",0,null,{"v":0,"d":"R0.00"}]
["1.0440","Electrical Consumables",null,"Insulation tape black","Insulation tape black",null,"Materials","ea",0,null,{"v":0,"d":"R0.00"}]
["1.0441","Electrical Consumables",null,"6mm fisher plugs 6x55","6mm fisher plugs 6x55",null,"Materials","ea",5000,null,{"v":0,"d":"R0.00"}]
["1.0442","Electrical Consumables",null,"8mm fisher plugs 8x80","8mm fisher plugs 8x80",null,"Materials","ea",5000,null,{"v":0,"d":"R0.00"}]
["1.0443","Electrical Consumables",null,"Brass Cable Gland complete with shroudNo 2","Brass Cable Gland complete with shroud","No 2","Materials","ea",200,null,{"v":0,"d":"R0.00"}]
["1.0444","Electrical Consumables",null,"Brass Cable Gland complete with shroudNo 3","Brass Cable Gland complete with shroud","No 3","Materials","ea",200,null,{"v":0,"d":"R0.00"}]
["1.0445","Electrical Consumables",null,"Brass Cable Gland complete with shroudNo 4","Brass Cable Gland complete with shroud","No 4","Materials","ea",200,null,{"v":0,"d":"R0.00"}]
["1.0446","Electrical Consumables",null,"Brass Cable Gland complete with shroudNo 5","Brass Cable Gland complete with shroud","No 5","Materials","ea",200,null,{"v":0,"d":"R0.00"}]
["1.0447","Electrical Consumables",null,"Brass Cable Gland complete with shroudNo 6","Brass Cable Gland complete with shroud","No 6","Materials","ea",200,null,{"v":0,"d":"R0.00"}]
["1.0448","Electrical Consumables",null,"Brass Cable Gland complete with shroudNo 7","Brass Cable Gland complete with shroud","No 7","Materials","ea",200,null,{"v":0,"d":"R0.00"}]
["1.0449","Electrical Consumables","Glands","SWA Cable EXENo 1","SWA Cable EXE","No 1","Materials","ea",5000,null,{"$f":"I455*J455","v":{"v":0,"d":"R0.00"}}]
["1.0450","Electrical Consumables","Glands","SWA Cable EXENo 2","SWA Cable EXE","No 2","Materials","ea",5000,null,{"v":0,"d":"R0.00"}]
["1.0451","Electrical Consumables","Glands","SWA Cable EXENo 3","SWA Cable EXE","No 3","Materials","ea",5000,null,{"v":0,"d":"R0.00"}]
["1.0452","Electrical Consumables","Glands","SWA Cable EXENo 4","SWA Cable EXE","No 4","Materials","ea",5000,null,{"v":0,"d":"R0.00"}]
["1.0453","Electrical Consumables","Glands","SWA Cable EXENo 5","SWA Cable EXE","No 5","Materials","ea",5000,null,{"v":0,"d":"R0.00"}]
["1.0454","Electrical Consumables","Glands","SWA Cable EXENo 6","SWA Cable EXE","No 6","Materials","ea",5000,null,{"v":0,"d":"R0.00"}]